{"text_format":"1","workbook":"xlsx","n_sheets":9,"sheets":["Menu","Veic","Mot","Manut","Frete","Dash","Dash (2)","Dash (3)","Instruções"],"not_rendered":{"charts":10,"images":11,"macros":1,"external_links":0,"defined_names":10,"comments":0,"pivot_tables":0},"unopened":[],"bounds":{"document_bytes":16777216,"sheet_cells":100000,"rows_first":2000,"rows_last":500,"rows_between":2000,"halvings":0,"cell_chars":16384,"cell_head_chars":4096},"cells_cut":0,"cells_raw":0,"read":"whole","date_system":"1900"}

{"sheet":"Menu","index":0,"n_rows":26,"n_cols":7,"rows_kept":26,"cut":false,"hidden":false,"merged":[[25,4,25,5],[25,6,25,14]]}
[]
[]
[]
[]
[]
[]
[]
[]
[]
[]
[]
[]
[]
[]
[]
[]
[]
[]
[]
[]
[]
[]
[]
[]
[]
[null,null,null,null,"Empresa:",null,"Empresa ABCDE"]

{"sheet":"Veic","index":1,"n_rows":43,"n_cols":19,"rows_kept":43,"cut":false,"hidden":false,"merged":[[9,2,9,4],[11,1,11,4]]}
[]
[]
[]
[]
[]
[]
[]
[]
[]
[null,"Empresa:",{"$f":"Menu!G26","v":"Empresa ABCDE"}]
[]
[null,"CADASTROS DE VEÍCULOS\nInsira os dados dos veículos.",null,null,null,null,null,null,null,{"$f":"SUM(J14:J43)","v":2},{"$f":"SUM(K14:K43)","v":3},null,{"$f":"SUM(M14:M43)","v":2350},null,{"$f":"SUM(O14:O43)","v":5},{"$f":"SUM(P14:P43)","v":40500},{"$f":"SUM(Q14:Q43)","v":4400},{"$f":"SUM(R14:R43)","v":13950},{"$f":"SUM(S14:S43)","v":36100}]
[null,"ITEM","VEÍCULO","PLACA","RENAVAM",null,null,null,null,"Preventiva","Corretiva",null,"DespesaManut",null,"Fretes","ReceitasFretes","DespesasFrete","KM Rodado","Saldo"]
[null,1,"CAMINHÃO VW 180","ABC1234",123456789,null,null,null,null,{"$f":"COUNTIFS(Manut!$D$14:$D$1000,Veic!J$13,Manut!$C$14:$C$1000,Veic!$C14)","v":1},{"$f":"COUNTIFS(Manut!$D$14:$D$1000,Veic!K$13,Manut!$C$14:$C$1000,Veic!$C14)","v":2},null,{"$f":"SUMIF(Manut!$C$14:$C$1000,Veic!C14,Manut!$F$14:$F$1000)","v":1950},null,{"$f":"COUNTIF(Frete!$C$14:$C$1000,Veic!C14)","v":3},{"$f":"SUMIF(Frete!$C$14:$C$1000,Veic!C14,Frete!$I$14:$I$1000)","v":31500},{"$f":"SUMIF(Frete!$C$14:$C$1000,Veic!C14,Frete!$M$14:$M$1000)","v":2800},{"$f":"SUMIF(Frete!$C$14:$C$1000,Veic!C14,Frete!$H$14:$H$1000)","v":5950},{"$f":"P14-Q14","v":28700}]
[null,2,"UNO FILE 1.0","AAA5555",222222222,null,null,null,null,{"$f":"COUNTIFS(Manut!$D$14:$D$1000,Veic!J$13,Manut!$C$14:$C$1000,Veic!$C15)","v":1},{"$f":"COUNTIFS(Manut!$D$14:$D$1000,Veic!K$13,Manut!$C$14:$C$1000,Veic!$C15)","v":1},null,{"$f":"SUMIF(Manut!$C$14:$C$1000,Veic!C15,Manut!$F$14:$F$1000)","v":400},null,{"$f":"COUNTIF(Frete!$C$14:$C$1000,Veic!C15)","v":2},{"$f":"SUMIF(Frete!$C$14:$C$1000,Veic!C15,Frete!$I$14:$I$1000)","v":9000},{"$f":"SUMIF(Frete!$C$14:$C$1000,Veic!C15,Frete!$M$14:$M$1000)","v":1600},{"$f":"SUMIF(Frete!$C$14:$C$1000,Veic!C15,Frete!$H$14:$H$1000)","v":8000},{"$f":"P15-Q15","v":7400}]
[null,3,null,null,null,null,null,null,null,{"$f":"COUNTIFS(Manut!$D$14:$D$1000,Veic!J$13,Manut!$C$14:$C$1000,Veic!$C16)","v":0},{"$f":"COUNTIFS(Manut!$D$14:$D$1000,Veic!K$13,Manut!$C$14:$C$1000,Veic!$C16)","v":0},null,{"$f":"SUMIF(Manut!$C$14:$C$1000,Veic!C16,Manut!$F$14:$F$1000)","v":0},null,{"$f":"COUNTIF(Frete!$C$14:$C$1000,Veic!C16)","v":0},{"$f":"SUMIF(Frete!$C$14:$C$1000,Veic!C16,Frete!$I$14:$I$1000)","v":0},{"$f":"SUMIF(Frete!$C$14:$C$1000,Veic!C16,Frete!$M$14:$M$1000)","v":0},{"$f":"SUMIF(Frete!$C$14:$C$1000,Veic!C16,Frete!$H$14:$H$1000)","v":0},0]
[null,4,null,null,null,null,null,null,null,{"$f":"COUNTIFS(Manut!$D$14:$D$1000,Veic!J$13,Manut!$C$14:$C$1000,Veic!$C17)","v":0},{"$f":"COUNTIFS(Manut!$D$14:$D$1000,Veic!K$13,Manut!$C$14:$C$1000,Veic!$C17)","v":0},null,{"$f":"SUMIF(Manut!$C$14:$C$1000,Veic!C17,Manut!$F$14:$F$1000)","v":0},null,{"$f":"COUNTIF(Frete!$C$14:$C$1000,Veic!C17)","v":0},{"$f":"SUMIF(Frete!$C$14:$C$1000,Veic!C17,Frete!$I$14:$I$1000)","v":0},{"$f":"SUMIF(Frete!$C$14:$C$1000,Veic!C17,Frete!$M$14:$M$1000)","v":0},{"$f":"SUMIF(Frete!$C$14:$C$1000,Veic!C17,Frete!$H$14:$H$1000)","v":0},0]
[null,5,null,null,null,null,null,null,null,{"$f":"COUNTIFS(Manut!$D$14:$D$1000,Veic!J$13,Manut!$C$14:$C$1000,Veic!$C18)","v":0},{"$f":"COUNTIFS(Manut!$D$14:$D$1000,Veic!K$13,Manut!$C$14:$C$1000,Veic!$C18)","v":0},null,{"$f":"SUMIF(Manut!$C$14:$C$1000,Veic!C18,Manut!$F$14:$F$1000)","v":0},null,{"$f":"COUNTIF(Frete!$C$14:$C$1000,Veic!C18)","v":0},{"$f":"SUMIF(Frete!$C$14:$C$1000,Veic!C18,Frete!$I$14:$I$1000)","v":0},{"$f":"SUMIF(Frete!$C$14:$C$1000,Veic!C18,Frete!$M$14:$M$1000)","v":0},{"$f":"SUMIF(Frete!$C$14:$C$1000,Veic!C18,Frete!$H$14:$H$1000)","v":0},0]
[null,6,null,null,null,null,null,null,null,{"$f":"COUNTIFS(Manut!$D$14:$D$1000,Veic!J$13,Manut!$C$14:$C$1000,Veic!$C19)","v":0},{"$f":"COUNTIFS(Manut!$D$14:$D$1000,Veic!K$13,Manut!$C$14:$C$1000,Veic!$C19)","v":0},null,{"$f":"SUMIF(Manut!$C$14:$C$1000,Veic!C19,Manut!$F$14:$F$1000)","v":0},null,{"$f":"COUNTIF(Frete!$C$14:$C$1000,Veic!C19)","v":0},{"$f":"SUMIF(Frete!$C$14:$C$1000,Veic!C19,Frete!$I$14:$I$1000)","v":0},{"$f":"SUMIF(Frete!$C$14:$C$1000,Veic!C19,Frete!$M$14:$M$1000)","v":0},{"$f":"SUMIF(Frete!$C$14:$C$1000,Veic!C19,Frete!$H$14:$H$1000)","v":0},0]
[null,7,null,null,null,null,null,null,null,{"$f":"COUNTIFS(Manut!$D$14:$D$1000,Veic!J$13,Manut!$C$14:$C$1000,Veic!$C20)","v":0},{"$f":"COUNTIFS(Manut!$D$14:$D$1000,Veic!K$13,Manut!$C$14:$C$1000,Veic!$C20)","v":0},null,{"$f":"SUMIF(Manut!$C$14:$C$1000,Veic!C20,Manut!$F$14:$F$1000)","v":0},null,{"$f":"COUNTIF(Frete!$C$14:$C$1000,Veic!C20)","v":0},{"$f":"SUMIF(Frete!$C$14:$C$1000,Veic!C20,Frete!$I$14:$I$1000)","v":0},{"$f":"SUMIF(Frete!$C$14:$C$1000,Veic!C20,Frete!$M$14:$M$1000)","v":0},{"$f":"SUMIF(Frete!$C$14:$C$1000,Veic!C20,Frete!$H$14:$H$1000)","v":0},0]
[null,8,null,null,null,null,null,null,null,{"$f":"COUNTIFS(Manut!$D$14:$D$1000,Veic!J$13,Manut!$C$14:$C$1000,Veic!$C21)","v":0},{"$f":"COUNTIFS(Manut!$D$14:$D$1000,Veic!K$13,Manut!$C$14:$C$1000,Veic!$C21)","v":0},null,{"$f":"SUMIF(Manut!$C$14:$C$1000,Veic!C21,Manut!$F$14:$F$1000)","v":0},null,{"$f":"COUNTIF(Frete!$C$14:$C$1000,Veic!C21)","v":0},{"$f":"SUMIF(Frete!$C$14:$C$1000,Veic!C21,Frete!$I$14:$I$1000)","v":0},{"$f":"SUMIF(Frete!$C$14:$C$1000,Veic!C21,Frete!$M$14:$M$1000)","v":0},{"$f":"SUMIF(Frete!$C$14:$C$1000,Veic!C21,Frete!$H$14:$H$1000)","v":0},0]
[null,9,null,null,null,null,null,null,null,{"$f":"COUNTIFS(Manut!$D$14:$D$1000,Veic!J$13,Manut!$C$14:$C$1000,Veic!$C22)","v":0},{"$f":"COUNTIFS(Manut!$D$14:$D$1000,Veic!K$13,Manut!$C$14:$C$1000,Veic!$C22)","v":0},null,{"$f":"SUMIF(Manut!$C$14:$C$1000,Veic!C22,Manut!$F$14:$F$1000)","v":0},null,{"$f":"COUNTIF(Frete!$C$14:$C$1000,Veic!C22)","v":0},{"$f":"SUMIF(Frete!$C$14:$C$1000,Veic!C22,Frete!$I$14:$I$1000)","v":0},{"$f":"SUMIF(Frete!$C$14:$C$1000,Veic!C22,Frete!$M$14:$M$1000)","v":0},{"$f":"SUMIF(Frete!$C$14:$C$1000,Veic!C22,Frete!$H$14:$H$1000)","v":0},0]
[null,10,null,null,null,null,null,null,null,{"$f":"COUNTIFS(Manut!$D$14:$D$1000,Veic!J$13,Manut!$C$14:$C$1000,Veic!$C23)","v":0},{"$f":"COUNTIFS(Manut!$D$14:$D$1000,Veic!K$13,Manut!$C$14:$C$1000,Veic!$C23)","v":0},null,{"$f":"SUMIF(Manut!$C$14:$C$1000,Veic!C23,Manut!$F$14:$F$1000)","v":0},null,{"$f":"COUNTIF(Frete!$C$14:$C$1000,Veic!C23)","v":0},{"$f":"SUMIF(Frete!$C$14:$C$1000,Veic!C23,Frete!$I$14:$I$1000)","v":0},{"$f":"SUMIF(Frete!$C$14:$C$1000,Veic!C23,Frete!$M$14:$M$1000)","v":0},{"$f":"SUMIF(Frete!$C$14:$C$1000,Veic!C23,Frete!$H$14:$H$1000)","v":0},0]
[null,11,null,null,null,null,null,null,null,{"$f":"COUNTIFS(Manut!$D$14:$D$1000,Veic!J$13,Manut!$C$14:$C$1000,Veic!$C24)","v":0},{"$f":"COUNTIFS(Manut!$D$14:$D$1000,Veic!K$13,Manut!$C$14:$C$1000,Veic!$C24)","v":0},null,{"$f":"SUMIF(Manut!$C$14:$C$1000,Veic!C24,Manut!$F$14:$F$1000)","v":0},null,{"$f":"COUNTIF(Frete!$C$14:$C$1000,Veic!C24)","v":0},{"$f":"SUMIF(Frete!$C$14:$C$1000,Veic!C24,Frete!$I$14:$I$1000)","v":0},{"$f":"SUMIF(Frete!$C$14:$C$1000,Veic!C24,Frete!$M$14:$M$1000)","v":0},{"$f":"SUMIF(Frete!$C$14:$C$1000,Veic!C24,Frete!$H$14:$H$1000)","v":0},0]
[null,12,null,null,null,null,null,null,null,{"$f":"COUNTIFS(Manut!$D$14:$D$1000,Veic!J$13,Manut!$C$14:$C$1000,Veic!$C25)","v":0},{"$f":"COUNTIFS(Manut!$D$14:$D$1000,Veic!K$13,Manut!$C$14:$C$1000,Veic!$C25)","v":0},null,{"$f":"SUMIF(Manut!$C$14:$C$1000,Veic!C25,Manut!$F$14:$F$1000)","v":0},null,{"$f":"COUNTIF(Frete!$C$14:$C$1000,Veic!C25)","v":0},{"$f":"SUMIF(Frete!$C$14:$C$1000,Veic!C25,Frete!$I$14:$I$1000)","v":0},{"$f":"SUMIF(Frete!$C$14:$C$1000,Veic!C25,Frete!$M$14:$M$1000)","v":0},{"$f":"SUMIF(Frete!$C$14:$C$1000,Veic!C25,Frete!$H$14:$H$1000)","v":0},0]
[null,13,null,null,null,null,null,null,null,{"$f":"COUNTIFS(Manut!$D$14:$D$1000,Veic!J$13,Manut!$C$14:$C$1000,Veic!$C26)","v":0},{"$f":"COUNTIFS(Manut!$D$14:$D$1000,Veic!K$13,Manut!$C$14:$C$1000,Veic!$C26)","v":0},null,{"$f":"SUMIF(Manut!$C$14:$C$1000,Veic!C26,Manut!$F$14:$F$1000)","v":0},null,{"$f":"COUNTIF(Frete!$C$14:$C$1000,Veic!C26)","v":0},{"$f":"SUMIF(Frete!$C$14:$C$1000,Veic!C26,Frete!$I$14:$I$1000)","v":0},{"$f":"SUMIF(Frete!$C$14:$C$1000,Veic!C26,Frete!$M$14:$M$1000)","v":0},{"$f":"SUMIF(Frete!$C$14:$C$1000,Veic!C26,Frete!$H$14:$H$1000)","v":0},0]
[null,14,null,null,null,null,null,null,null,{"$f":"COUNTIFS(Manut!$D$14:$D$1000,Veic!J$13,Manut!$C$14:$C$1000,Veic!$C27)","v":0},{"$f":"COUNTIFS(Manut!$D$14:$D$1000,Veic!K$13,Manut!$C$14:$C$1000,Veic!$C27)","v":0},null,{"$f":"SUMIF(Manut!$C$14:$C$1000,Veic!C27,Manut!$F$14:$F$1000)","v":0},null,{"$f":"COUNTIF(Frete!$C$14:$C$1000,Veic!C27)","v":0},{"$f":"SUMIF(Frete!$C$14:$C$1000,Veic!C27,Frete!$I$14:$I$1000)","v":0},{"$f":"SUMIF(Frete!$C$14:$C$1000,Veic!C27,Frete!$M$14:$M$1000)","v":0},{"$f":"SUMIF(Frete!$C$14:$C$1000,Veic!C27,Frete!$H$14:$H$1000)","v":0},0]
[null,15,null,null,null,null,null,null,null,{"$f":"COUNTIFS(Manut!$D$14:$D$1000,Veic!J$13,Manut!$C$14:$C$1000,Veic!$C28)","v":0},{"$f":"COUNTIFS(Manut!$D$14:$D$1000,Veic!K$13,Manut!$C$14:$C$1000,Veic!$C28)","v":0},null,{"$f":"SUMIF(Manut!$C$14:$C$1000,Veic!C28,Manut!$F$14:$F$1000)","v":0},null,{"$f":"COUNTIF(Frete!$C$14:$C$1000,Veic!C28)","v":0},{"$f":"SUMIF(Frete!$C$14:$C$1000,Veic!C28,Frete!$I$14:$I$1000)","v":0},{"$f":"SUMIF(Frete!$C$14:$C$1000,Veic!C28,Frete!$M$14:$M$1000)","v":0},{"$f":"SUMIF(Frete!$C$14:$C$1000,Veic!C28,Frete!$H$14:$H$1000)","v":0},0]
[null,16,null,null,null,null,null,null,null,{"$f":"COUNTIFS(Manut!$D$14:$D$1000,Veic!J$13,Manut!$C$14:$C$1000,Veic!$C29)","v":0},{"$f":"COUNTIFS(Manut!$D$14:$D$1000,Veic!K$13,Manut!$C$14:$C$1000,Veic!$C29)","v":0},null,{"$f":"SUMIF(Manut!$C$14:$C$1000,Veic!C29,Manut!$F$14:$F$1000)","v":0},null,{"$f":"COUNTIF(Frete!$C$14:$C$1000,Veic!C29)","v":0},{"$f":"SUMIF(Frete!$C$14:$C$1000,Veic!C29,Frete!$I$14:$I$1000)","v":0},{"$f":"SUMIF(Frete!$C$14:$C$1000,Veic!C29,Frete!$M$14:$M$1000)","v":0},{"$f":"SUMIF(Frete!$C$14:$C$1000,Veic!C29,Frete!$H$14:$H$1000)","v":0},0]
[null,17,null,null,null,null,null,null,null,{"$f":"COUNTIFS(Manut!$D$14:$D$1000,Veic!J$13,Manut!$C$14:$C$1000,Veic!$C30)","v":0},{"$f":"COUNTIFS(Manut!$D$14:$D$1000,Veic!K$13,Manut!$C$14:$C$1000,Veic!$C30)","v":0},null,{"$f":"SUMIF(Manut!$C$14:$C$1000,Veic!C30,Manut!$F$14:$F$1000)","v":0},null,{"$f":"COUNTIF(Frete!$C$14:$C$1000,Veic!C30)","v":0},{"$f":"SUMIF(Frete!$C$14:$C$1000,Veic!C30,Frete!$I$14:$I$1000)","v":0},{"$f":"SUMIF(Frete!$C$14:$C$1000,Veic!C30,Frete!$M$14:$M$1000)","v":0},{"$f":"SUMIF(Frete!$C$14:$C$1000,Veic!C30,Frete!$H$14:$H$1000)","v":0},0]
[null,18,null,null,null,null,null,null,null,{"$f":"COUNTIFS(Manut!$D$14:$D$1000,Veic!J$13,Manut!$C$14:$C$1000,Veic!$C31)","v":0},{"$f":"COUNTIFS(Manut!$D$14:$D$1000,Veic!K$13,Manut!$C$14:$C$1000,Veic!$C31)","v":0},null,{"$f":"SUMIF(Manut!$C$14:$C$1000,Veic!C31,Manut!$F$14:$F$1000)","v":0},null,{"$f":"COUNTIF(Frete!$C$14:$C$1000,Veic!C31)","v":0},{"$f":"SUMIF(Frete!$C$14:$C$1000,Veic!C31,Frete!$I$14:$I$1000)","v":0},{"$f":"SUMIF(Frete!$C$14:$C$1000,Veic!C31,Frete!$M$14:$M$1000)","v":0},{"$f":"SUMIF(Frete!$C$14:$C$1000,Veic!C31,Frete!$H$14:$H$1000)","v":0},0]
[null,19,null,null,null,null,null,null,null,{"$f":"COUNTIFS(Manut!$D$14:$D$1000,Veic!J$13,Manut!$C$14:$C$1000,Veic!$C32)","v":0},{"$f":"COUNTIFS(Manut!$D$14:$D$1000,Veic!K$13,Manut!$C$14:$C$1000,Veic!$C32)","v":0},null,{"$f":"SUMIF(Manut!$C$14:$C$1000,Veic!C32,Manut!$F$14:$F$1000)","v":0},null,{"$f":"COUNTIF(Frete!$C$14:$C$1000,Veic!C32)","v":0},{"$f":"SUMIF(Frete!$C$14:$C$1000,Veic!C32,Frete!$I$14:$I$1000)","v":0},{"$f":"SUMIF(Frete!$C$14:$C$1000,Veic!C32,Frete!$M$14:$M$1000)","v":0},{"$f":"SUMIF(Frete!$C$14:$C$1000,Veic!C32,Frete!$H$14:$H$1000)","v":0},0]
[null,20,null,null,null,null,null,null,null,{"$f":"COUNTIFS(Manut!$D$14:$D$1000,Veic!J$13,Manut!$C$14:$C$1000,Veic!$C33)","v":0},{"$f":"COUNTIFS(Manut!$D$14:$D$1000,Veic!K$13,Manut!$C$14:$C$1000,Veic!$C33)","v":0},null,{"$f":"SUMIF(Manut!$C$14:$C$1000,Veic!C33,Manut!$F$14:$F$1000)","v":0},null,{"$f":"COUNTIF(Frete!$C$14:$C$1000,Veic!C33)","v":0},{"$f":"SUMIF(Frete!$C$14:$C$1000,Veic!C33,Frete!$I$14:$I$1000)","v":0},{"$f":"SUMIF(Frete!$C$14:$C$1000,Veic!C33,Frete!$M$14:$M$1000)","v":0},{"$f":"SUMIF(Frete!$C$14:$C$1000,Veic!C33,Frete!$H$14:$H$1000)","v":0},0]
[null,21,null,null,null,null,null,null,null,{"$f":"COUNTIFS(Manut!$D$14:$D$1000,Veic!J$13,Manut!$C$14:$C$1000,Veic!$C34)","v":0},{"$f":"COUNTIFS(Manut!$D$14:$D$1000,Veic!K$13,Manut!$C$14:$C$1000,Veic!$C34)","v":0},null,{"$f":"SUMIF(Manut!$C$14:$C$1000,Veic!C34,Manut!$F$14:$F$1000)","v":0},null,{"$f":"COUNTIF(Frete!$C$14:$C$1000,Veic!C34)","v":0},{"$f":"SUMIF(Frete!$C$14:$C$1000,Veic!C34,Frete!$I$14:$I$1000)","v":0},{"$f":"SUMIF(Frete!$C$14:$C$1000,Veic!C34,Frete!$M$14:$M$1000)","v":0},{"$f":"SUMIF(Frete!$C$14:$C$1000,Veic!C34,Frete!$H$14:$H$1000)","v":0},0]
[null,22,null,null,null,null,null,null,null,{"$f":"COUNTIFS(Manut!$D$14:$D$1000,Veic!J$13,Manut!$C$14:$C$1000,Veic!$C35)","v":0},{"$f":"COUNTIFS(Manut!$D$14:$D$1000,Veic!K$13,Manut!$C$14:$C$1000,Veic!$C35)","v":0},null,{"$f":"SUMIF(Manut!$C$14:$C$1000,Veic!C35,Manut!$F$14:$F$1000)","v":0},null,{"$f":"COUNTIF(Frete!$C$14:$C$1000,Veic!C35)","v":0},{"$f":"SUMIF(Frete!$C$14:$C$1000,Veic!C35,Frete!$I$14:$I$1000)","v":0},{"$f":"SUMIF(Frete!$C$14:$C$1000,Veic!C35,Frete!$M$14:$M$1000)","v":0},{"$f":"SUMIF(Frete!$C$14:$C$1000,Veic!C35,Frete!$H$14:$H$1000)","v":0},0]
[null,23,null,null,null,null,null,null,null,{"$f":"COUNTIFS(Manut!$D$14:$D$1000,Veic!J$13,Manut!$C$14:$C$1000,Veic!$C36)","v":0},{"$f":"COUNTIFS(Manut!$D$14:$D$1000,Veic!K$13,Manut!$C$14:$C$1000,Veic!$C36)","v":0},null,{"$f":"SUMIF(Manut!$C$14:$C$1000,Veic!C36,Manut!$F$14:$F$1000)","v":0},null,{"$f":"COUNTIF(Frete!$C$14:$C$1000,Veic!C36)","v":0},{"$f":"SUMIF(Frete!$C$14:$C$1000,Veic!C36,Frete!$I$14:$I$1000)","v":0},{"$f":"SUMIF(Frete!$C$14:$C$1000,Veic!C36,Frete!$M$14:$M$1000)","v":0},{"$f":"SUMIF(Frete!$C$14:$C$1000,Veic!C36,Frete!$H$14:$H$1000)","v":0},0]
[null,24,null,null,null,null,null,null,null,{"$f":"COUNTIFS(Manut!$D$14:$D$1000,Veic!J$13,Manut!$C$14:$C$1000,Veic!$C37)","v":0},{"$f":"COUNTIFS(Manut!$D$14:$D$1000,Veic!K$13,Manut!$C$14:$C$1000,Veic!$C37)","v":0},null,{"$f":"SUMIF(Manut!$C$14:$C$1000,Veic!C37,Manut!$F$14:$F$1000)","v":0},null,{"$f":"COUNTIF(Frete!$C$14:$C$1000,Veic!C37)","v":0},{"$f":"SUMIF(Frete!$C$14:$C$1000,Veic!C37,Frete!$I$14:$I$1000)","v":0},{"$f":"SUMIF(Frete!$C$14:$C$1000,Veic!C37,Frete!$M$14:$M$1000)","v":0},{"$f":"SUMIF(Frete!$C$14:$C$1000,Veic!C37,Frete!$H$14:$H$1000)","v":0},0]
[null,25,null,null,null,null,null,null,null,{"$f":"COUNTIFS(Manut!$D$14:$D$1000,Veic!J$13,Manut!$C$14:$C$1000,Veic!$C38)","v":0},{"$f":"COUNTIFS(Manut!$D$14:$D$1000,Veic!K$13,Manut!$C$14:$C$1000,Veic!$C38)","v":0},null,{"$f":"SUMIF(Manut!$C$14:$C$1000,Veic!C38,Manut!$F$14:$F$1000)","v":0},null,{"$f":"COUNTIF(Frete!$C$14:$C$1000,Veic!C38)","v":0},{"$f":"SUMIF(Frete!$C$14:$C$1000,Veic!C38,Frete!$I$14:$I$1000)","v":0},{"$f":"SUMIF(Frete!$C$14:$C$1000,Veic!C38,Frete!$M$14:$M$1000)","v":0},{"$f":"SUMIF(Frete!$C$14:$C$1000,Veic!C38,Frete!$H$14:$H$1000)","v":0},0]
[null,26,null,null,null,null,null,null,null,{"$f":"COUNTIFS(Manut!$D$14:$D$1000,Veic!J$13,Manut!$C$14:$C$1000,Veic!$C39)","v":0},{"$f":"COUNTIFS(Manut!$D$14:$D$1000,Veic!K$13,Manut!$C$14:$C$1000,Veic!$C39)","v":0},null,{"$f":"SUMIF(Manut!$C$14:$C$1000,Veic!C39,Manut!$F$14:$F$1000)","v":0},null,{"$f":"COUNTIF(Frete!$C$14:$C$1000,Veic!C39)","v":0},{"$f":"SUMIF(Frete!$C$14:$C$1000,Veic!C39,Frete!$I$14:$I$1000)","v":0},{"$f":"SUMIF(Frete!$C$14:$C$1000,Veic!C39,Frete!$M$14:$M$1000)","v":0},{"$f":"SUMIF(Frete!$C$14:$C$1000,Veic!C39,Frete!$H$14:$H$1000)","v":0},0]
[null,27,null,null,null,null,null,null,null,{"$f":"COUNTIFS(Manut!$D$14:$D$1000,Veic!J$13,Manut!$C$14:$C$1000,Veic!$C40)","v":0},{"$f":"COUNTIFS(Manut!$D$14:$D$1000,Veic!K$13,Manut!$C$14:$C$1000,Veic!$C40)","v":0},null,{"$f":"SUMIF(Manut!$C$14:$C$1000,Veic!C40,Manut!$F$14:$F$1000)","v":0},null,{"$f":"COUNTIF(Frete!$C$14:$C$1000,Veic!C40)","v":0},{"$f":"SUMIF(Frete!$C$14:$C$1000,Veic!C40,Frete!$I$14:$I$1000)","v":0},{"$f":"SUMIF(Frete!$C$14:$C$1000,Veic!C40,Frete!$M$14:$M$1000)","v":0},{"$f":"SUMIF(Frete!$C$14:$C$1000,Veic!C40,Frete!$H$14:$H$1000)","v":0},0]
[null,28,null,null,null,null,null,null,null,{"$f":"COUNTIFS(Manut!$D$14:$D$1000,Veic!J$13,Manut!$C$14:$C$1000,Veic!$C41)","v":0},{"$f":"COUNTIFS(Manut!$D$14:$D$1000,Veic!K$13,Manut!$C$14:$C$1000,Veic!$C41)","v":0},null,{"$f":"SUMIF(Manut!$C$14:$C$1000,Veic!C41,Manut!$F$14:$F$1000)","v":0},null,{"$f":"COUNTIF(Frete!$C$14:$C$1000,Veic!C41)","v":0},{"$f":"SUMIF(Frete!$C$14:$C$1000,Veic!C41,Frete!$I$14:$I$1000)","v":0},{"$f":"SUMIF(Frete!$C$14:$C$1000,Veic!C41,Frete!$M$14:$M$1000)","v":0},{"$f":"SUMIF(Frete!$C$14:$C$1000,Veic!C41,Frete!$H$14:$H$1000)","v":0},0]
[null,29,null,null,null,null,null,null,null,{"$f":"COUNTIFS(Manut!$D$14:$D$1000,Veic!J$13,Manut!$C$14:$C$1000,Veic!$C42)","v":0},{"$f":"COUNTIFS(Manut!$D$14:$D$1000,Veic!K$13,Manut!$C$14:$C$1000,Veic!$C42)","v":0},null,{"$f":"SUMIF(Manut!$C$14:$C$1000,Veic!C42,Manut!$F$14:$F$1000)","v":0},null,{"$f":"COUNTIF(Frete!$C$14:$C$1000,Veic!C42)","v":0},{"$f":"SUMIF(Frete!$C$14:$C$1000,Veic!C42,Frete!$I$14:$I$1000)","v":0},{"$f":"SUMIF(Frete!$C$14:$C$1000,Veic!C42,Frete!$M$14:$M$1000)","v":0},{"$f":"SUMIF(Frete!$C$14:$C$1000,Veic!C42,Frete!$H$14:$H$1000)","v":0},0]
[null,30,null,null,null,null,null,null,null,{"$f":"COUNTIFS(Manut!$D$14:$D$1000,Veic!J$13,Manut!$C$14:$C$1000,Veic!$C43)","v":0},{"$f":"COUNTIFS(Manut!$D$14:$D$1000,Veic!K$13,Manut!$C$14:$C$1000,Veic!$C43)","v":0},null,{"$f":"SUMIF(Manut!$C$14:$C$1000,Veic!C43,Manut!$F$14:$F$1000)","v":0},null,{"$f":"COUNTIF(Frete!$C$14:$C$1000,Veic!C43)","v":0},{"$f":"SUMIF(Frete!$C$14:$C$1000,Veic!C43,Frete!$I$14:$I$1000)","v":0},{"$f":"SUMIF(Frete!$C$14:$C$1000,Veic!C43,Frete!$M$14:$M$1000)","v":0},{"$f":"SUMIF(Frete!$C$14:$C$1000,Veic!C43,Frete!$H$14:$H$1000)","v":0},0]

{"sheet":"Mot","index":2,"n_rows":43,"n_cols":21,"rows_kept":43,"cut":false,"hidden":false,"merged":[[9,2,9,5],[11,1,11,5]]}
[]
[]
[]
[]
[]
[]
[]
[]
[]
[null,"Empresa:",{"$f":"Menu!G26","v":"Empresa ABCDE"}]
[]
[null,"CADASTROS DE MOTORISTAS\nInsira os dados dos motoristas.",null,null,null,null,null,null,null,null,null,null,{"$f":"COUNTIF($H$14:$H$43,M$13)","v":3},{"$f":"COUNTIF($H$14:$H$43,N$13)","v":0},{"$f":"COUNTIF($H$14:$H$43,O$13)","v":0},null,{"$f":"SUM(Q14:Q43)","v":5},{"$f":"SUM(R14:R43)","v":13950},{"$f":"SUM(S14:S43)","v":40500},{"$f":"SUM(T14:T43)","v":4400},{"$f":"SUM(U14:U43)","v":36100}]
[null,"ITEM","MOTORISTA","TELEFONE","TIPO DE CNH","CNH","VENCIMENTO CNH","STATUS CNH",null,null,null,null,"CNH VENCIDA","CNH OK","CNH VENCENDO",null,"Fretes","KM Rodado","ReceitasFretes","DespesasFrete","Saldo"]
[null,1,"JOSÉ DA SILVA","9999-9999","D",123456789,"2019-10-27",{"$f":"IF(G14=\"\",\"\",IF(G14<TODAY(),\"CNH VENCIDA\",IF(G14-TODAY()<30,\"CNH VENCENDO\",\"CNH OK\")))","v":"CNH VENCIDA"},null,null,null,null,null,null,null,null,{"$f":"COUNTIF(Frete!$D$14:$D$1000,C14)","v":3},{"$f":"SUMIF(Frete!$D$14:$D$1000,C14,Frete!$H$14:$H$1000)","v":5950},{"$f":"SUMIF(Frete!$D$14:$D$1000,C14,Frete!$I$14:$I$1000)","v":31500},{"$f":"SUMIF(Frete!$D$14:$D$1000,C14,Frete!$M$14:$M$1000)","v":2800},{"$f":"S14-T14","v":28700}]
[null,2,"JOÃO PAULO ALVES","8888-8888","D",222222222,"2021-08-15",{"$f":"IF(G15=\"\",\"\",IF(G15<TODAY(),\"CNH VENCIDA\",IF(G15-TODAY()<30,\"CNH VENCENDO\",\"CNH OK\")))","v":"CNH VENCIDA"},null,null,null,null,null,null,null,null,{"$f":"COUNTIF(Frete!$D$14:$D$1000,C15)","v":2},{"$f":"SUMIF(Frete!$D$14:$D$1000,C15,Frete!$H$14:$H$1000)","v":8000},{"$f":"SUMIF(Frete!$D$14:$D$1000,C15,Frete!$I$14:$I$1000)","v":9000},{"$f":"SUMIF(Frete!$D$14:$D$1000,C15,Frete!$M$14:$M$1000)","v":1600},{"$f":"S15-T15","v":7400}]
[null,3,"PEDRO HENRIQUE","7777-7777","AB",5555555,"2020-11-15","CNH VENCIDA",null,null,null,null,null,null,null,null,{"$f":"COUNTIF(Frete!$D$14:$D$1000,C16)","v":0},{"$f":"SUMIF(Frete!$D$14:$D$1000,C16,Frete!$H$14:$H$1000)","v":0},{"$f":"SUMIF(Frete!$D$14:$D$1000,C16,Frete!$I$14:$I$1000)","v":0},{"$f":"SUMIF(Frete!$D$14:$D$1000,C16,Frete!$M$14:$M$1000)","v":0},0]
[null,4,null,null,null,null,null,"",null,null,null,null,null,null,null,null,{"$f":"COUNTIF(Frete!$D$14:$D$1000,C17)","v":0},{"$f":"SUMIF(Frete!$D$14:$D$1000,C17,Frete!$H$14:$H$1000)","v":0},{"$f":"SUMIF(Frete!$D$14:$D$1000,C17,Frete!$I$14:$I$1000)","v":0},{"$f":"SUMIF(Frete!$D$14:$D$1000,C17,Frete!$M$14:$M$1000)","v":0},0]
[null,5,null,null,null,null,null,"",null,null,null,null,null,null,null,null,{"$f":"COUNTIF(Frete!$D$14:$D$1000,C18)","v":0},{"$f":"SUMIF(Frete!$D$14:$D$1000,C18,Frete!$H$14:$H$1000)","v":0},{"$f":"SUMIF(Frete!$D$14:$D$1000,C18,Frete!$I$14:$I$1000)","v":0},{"$f":"SUMIF(Frete!$D$14:$D$1000,C18,Frete!$M$14:$M$1000)","v":0},0]
[null,6,null,null,null,null,null,"",null,null,null,null,null,null,null,null,{"$f":"COUNTIF(Frete!$D$14:$D$1000,C19)","v":0},{"$f":"SUMIF(Frete!$D$14:$D$1000,C19,Frete!$H$14:$H$1000)","v":0},{"$f":"SUMIF(Frete!$D$14:$D$1000,C19,Frete!$I$14:$I$1000)","v":0},{"$f":"SUMIF(Frete!$D$14:$D$1000,C19,Frete!$M$14:$M$1000)","v":0},0]
[null,7,null,null,null,null,null,"",null,null,null,null,null,null,null,null,{"$f":"COUNTIF(Frete!$D$14:$D$1000,C20)","v":0},{"$f":"SUMIF(Frete!$D$14:$D$1000,C20,Frete!$H$14:$H$1000)","v":0},{"$f":"SUMIF(Frete!$D$14:$D$1000,C20,Frete!$I$14:$I$1000)","v":0},{"$f":"SUMIF(Frete!$D$14:$D$1000,C20,Frete!$M$14:$M$1000)","v":0},0]
[null,8,null,null,null,null,null,"",null,null,null,null,null,null,null,null,{"$f":"COUNTIF(Frete!$D$14:$D$1000,C21)","v":0},{"$f":"SUMIF(Frete!$D$14:$D$1000,C21,Frete!$H$14:$H$1000)","v":0},{"$f":"SUMIF(Frete!$D$14:$D$1000,C21,Frete!$I$14:$I$1000)","v":0},{"$f":"SUMIF(Frete!$D$14:$D$1000,C21,Frete!$M$14:$M$1000)","v":0},0]
[null,9,null,null,null,null,null,"",null,null,null,null,null,null,null,null,{"$f":"COUNTIF(Frete!$D$14:$D$1000,C22)","v":0},{"$f":"SUMIF(Frete!$D$14:$D$1000,C22,Frete!$H$14:$H$1000)","v":0},{"$f":"SUMIF(Frete!$D$14:$D$1000,C22,Frete!$I$14:$I$1000)","v":0},{"$f":"SUMIF(Frete!$D$14:$D$1000,C22,Frete!$M$14:$M$1000)","v":0},0]
[null,10,null,null,null,null,null,"",null,null,null,null,null,null,null,null,{"$f":"COUNTIF(Frete!$D$14:$D$1000,C23)","v":0},{"$f":"SUMIF(Frete!$D$14:$D$1000,C23,Frete!$H$14:$H$1000)","v":0},{"$f":"SUMIF(Frete!$D$14:$D$1000,C23,Frete!$I$14:$I$1000)","v":0},{"$f":"SUMIF(Frete!$D$14:$D$1000,C23,Frete!$M$14:$M$1000)","v":0},0]
[null,11,null,null,null,null,null,"",null,null,null,null,null,null,null,null,{"$f":"COUNTIF(Frete!$D$14:$D$1000,C24)","v":0},{"$f":"SUMIF(Frete!$D$14:$D$1000,C24,Frete!$H$14:$H$1000)","v":0},{"$f":"SUMIF(Frete!$D$14:$D$1000,C24,Frete!$I$14:$I$1000)","v":0},{"$f":"SUMIF(Frete!$D$14:$D$1000,C24,Frete!$M$14:$M$1000)","v":0},0]
[null,12,null,null,null,null,null,"",null,null,null,null,null,null,null,null,{"$f":"COUNTIF(Frete!$D$14:$D$1000,C25)","v":0},{"$f":"SUMIF(Frete!$D$14:$D$1000,C25,Frete!$H$14:$H$1000)","v":0},{"$f":"SUMIF(Frete!$D$14:$D$1000,C25,Frete!$I$14:$I$1000)","v":0},{"$f":"SUMIF(Frete!$D$14:$D$1000,C25,Frete!$M$14:$M$1000)","v":0},0]
[null,13,null,null,null,null,null,"",null,null,null,null,null,null,null,null,{"$f":"COUNTIF(Frete!$D$14:$D$1000,C26)","v":0},{"$f":"SUMIF(Frete!$D$14:$D$1000,C26,Frete!$H$14:$H$1000)","v":0},{"$f":"SUMIF(Frete!$D$14:$D$1000,C26,Frete!$I$14:$I$1000)","v":0},{"$f":"SUMIF(Frete!$D$14:$D$1000,C26,Frete!$M$14:$M$1000)","v":0},0]
[null,14,null,null,null,null,null,"",null,null,null,null,null,null,null,null,{"$f":"COUNTIF(Frete!$D$14:$D$1000,C27)","v":0},{"$f":"SUMIF(Frete!$D$14:$D$1000,C27,Frete!$H$14:$H$1000)","v":0},{"$f":"SUMIF(Frete!$D$14:$D$1000,C27,Frete!$I$14:$I$1000)","v":0},{"$f":"SUMIF(Frete!$D$14:$D$1000,C27,Frete!$M$14:$M$1000)","v":0},0]
[null,15,null,null,null,null,null,"",null,null,null,null,null,null,null,null,{"$f":"COUNTIF(Frete!$D$14:$D$1000,C28)","v":0},{"$f":"SUMIF(Frete!$D$14:$D$1000,C28,Frete!$H$14:$H$1000)","v":0},{"$f":"SUMIF(Frete!$D$14:$D$1000,C28,Frete!$I$14:$I$1000)","v":0},{"$f":"SUMIF(Frete!$D$14:$D$1000,C28,Frete!$M$14:$M$1000)","v":0},0]
[null,16,null,null,null,null,null,"",null,null,null,null,null,null,null,null,{"$f":"COUNTIF(Frete!$D$14:$D$1000,C29)","v":0},{"$f":"SUMIF(Frete!$D$14:$D$1000,C29,Frete!$H$14:$H$1000)","v":0},{"$f":"SUMIF(Frete!$D$14:$D$1000,C29,Frete!$I$14:$I$1000)","v":0},{"$f":"SUMIF(Frete!$D$14:$D$1000,C29,Frete!$M$14:$M$1000)","v":0},0]
[null,17,null,null,null,null,null,"",null,null,null,null,null,null,null,null,{"$f":"COUNTIF(Frete!$D$14:$D$1000,C30)","v":0},{"$f":"SUMIF(Frete!$D$14:$D$1000,C30,Frete!$H$14:$H$1000)","v":0},{"$f":"SUMIF(Frete!$D$14:$D$1000,C30,Frete!$I$14:$I$1000)","v":0},{"$f":"SUMIF(Frete!$D$14:$D$1000,C30,Frete!$M$14:$M$1000)","v":0},0]
[null,18,null,null,null,null,null,"",null,null,null,null,null,null,null,null,{"$f":"COUNTIF(Frete!$D$14:$D$1000,C31)","v":0},{"$f":"SUMIF(Frete!$D$14:$D$1000,C31,Frete!$H$14:$H$1000)","v":0},{"$f":"SUMIF(Frete!$D$14:$D$1000,C31,Frete!$I$14:$I$1000)","v":0},{"$f":"SUMIF(Frete!$D$14:$D$1000,C31,Frete!$M$14:$M$1000)","v":0},0]
[null,19,null,null,null,null,null,"",null,null,null,null,null,null,null,null,{"$f":"COUNTIF(Frete!$D$14:$D$1000,C32)","v":0},{"$f":"SUMIF(Frete!$D$14:$D$1000,C32,Frete!$H$14:$H$1000)","v":0},{"$f":"SUMIF(Frete!$D$14:$D$1000,C32,Frete!$I$14:$I$1000)","v":0},{"$f":"SUMIF(Frete!$D$14:$D$1000,C32,Frete!$M$14:$M$1000)","v":0},0]
[null,20,null,null,null,null,null,"",null,null,null,null,null,null,null,null,{"$f":"COUNTIF(Frete!$D$14:$D$1000,C33)","v":0},{"$f":"SUMIF(Frete!$D$14:$D$1000,C33,Frete!$H$14:$H$1000)","v":0},{"$f":"SUMIF(Frete!$D$14:$D$1000,C33,Frete!$I$14:$I$1000)","v":0},{"$f":"SUMIF(Frete!$D$14:$D$1000,C33,Frete!$M$14:$M$1000)","v":0},0]
[null,21,null,null,null,null,null,"",null,null,null,null,null,null,null,null,{"$f":"COUNTIF(Frete!$D$14:$D$1000,C34)","v":0},{"$f":"SUMIF(Frete!$D$14:$D$1000,C34,Frete!$H$14:$H$1000)","v":0},{"$f":"SUMIF(Frete!$D$14:$D$1000,C34,Frete!$I$14:$I$1000)","v":0},{"$f":"SUMIF(Frete!$D$14:$D$1000,C34,Frete!$M$14:$M$1000)","v":0},0]
[null,22,null,null,null,null,null,"",null,null,null,null,null,null,null,null,{"$f":"COUNTIF(Frete!$D$14:$D$1000,C35)","v":0},{"$f":"SUMIF(Frete!$D$14:$D$1000,C35,Frete!$H$14:$H$1000)","v":0},{"$f":"SUMIF(Frete!$D$14:$D$1000,C35,Frete!$I$14:$I$1000)","v":0},{"$f":"SUMIF(Frete!$D$14:$D$1000,C35,Frete!$M$14:$M$1000)","v":0},0]
[null,23,null,null,null,null,null,"",null,null,null,null,null,null,null,null,{"$f":"COUNTIF(Frete!$D$14:$D$1000,C36)","v":0},{"$f":"SUMIF(Frete!$D$14:$D$1000,C36,Frete!$H$14:$H$1000)","v":0},{"$f":"SUMIF(Frete!$D$14:$D$1000,C36,Frete!$I$14:$I$1000)","v":0},{"$f":"SUMIF(Frete!$D$14:$D$1000,C36,Frete!$M$14:$M$1000)","v":0},0]
[null,24,null,null,null,null,null,"",null,null,null,null,null,null,null,null,{"$f":"COUNTIF(Frete!$D$14:$D$1000,C37)","v":0},{"$f":"SUMIF(Frete!$D$14:$D$1000,C37,Frete!$H$14:$H$1000)","v":0},{"$f":"SUMIF(Frete!$D$14:$D$1000,C37,Frete!$I$14:$I$1000)","v":0},{"$f":"SUMIF(Frete!$D$14:$D$1000,C37,Frete!$M$14:$M$1000)","v":0},0]
[null,25,null,null,null,null,null,"",null,null,null,null,null,null,null,null,{"$f":"COUNTIF(Frete!$D$14:$D$1000,C38)","v":0},{"$f":"SUMIF(Frete!$D$14:$D$1000,C38,Frete!$H$14:$H$1000)","v":0},{"$f":"SUMIF(Frete!$D$14:$D$1000,C38,Frete!$I$14:$I$1000)","v":0},{"$f":"SUMIF(Frete!$D$14:$D$1000,C38,Frete!$M$14:$M$1000)","v":0},0]
[null,26,null,null,null,null,null,"",null,null,null,null,null,null,null,null,{"$f":"COUNTIF(Frete!$D$14:$D$1000,C39)","v":0},{"$f":"SUMIF(Frete!$D$14:$D$1000,C39,Frete!$H$14:$H$1000)","v":0},{"$f":"SUMIF(Frete!$D$14:$D$1000,C39,Frete!$I$14:$I$1000)","v":0},{"$f":"SUMIF(Frete!$D$14:$D$1000,C39,Frete!$M$14:$M$1000)","v":0},0]
[null,27,null,null,null,null,null,"",null,null,null,null,null,null,null,null,{"$f":"COUNTIF(Frete!$D$14:$D$1000,C40)","v":0},{"$f":"SUMIF(Frete!$D$14:$D$1000,C40,Frete!$H$14:$H$1000)","v":0},{"$f":"SUMIF(Frete!$D$14:$D$1000,C40,Frete!$I$14:$I$1000)","v":0},{"$f":"SUMIF(Frete!$D$14:$D$1000,C40,Frete!$M$14:$M$1000)","v":0},0]
[null,28,null,null,null,null,null,"",null,null,null,null,null,null,null,null,{"$f":"COUNTIF(Frete!$D$14:$D$1000,C41)","v":0},{"$f":"SUMIF(Frete!$D$14:$D$1000,C41,Frete!$H$14:$H$1000)","v":0},{"$f":"SUMIF(Frete!$D$14:$D$1000,C41,Frete!$I$14:$I$1000)","v":0},{"$f":"SUMIF(Frete!$D$14:$D$1000,C41,Frete!$M$14:$M$1000)","v":0},0]
[null,29,null,null,null,null,null,"",null,null,null,null,null,null,null,null,{"$f":"COUNTIF(Frete!$D$14:$D$1000,C42)","v":0},{"$f":"SUMIF(Frete!$D$14:$D$1000,C42,Frete!$H$14:$H$1000)","v":0},{"$f":"SUMIF(Frete!$D$14:$D$1000,C42,Frete!$I$14:$I$1000)","v":0},{"$f":"SUMIF(Frete!$D$14:$D$1000,C42,Frete!$M$14:$M$1000)","v":0},0]
[null,30,null,null,null,null,null,"",null,null,null,null,null,null,null,null,{"$f":"COUNTIF(Frete!$D$14:$D$1000,C43)","v":0},{"$f":"SUMIF(Frete!$D$14:$D$1000,C43,Frete!$H$14:$H$1000)","v":0},{"$f":"SUMIF(Frete!$D$14:$D$1000,C43,Frete!$I$14:$I$1000)","v":0},{"$f":"SUMIF(Frete!$D$14:$D$1000,C43,Frete!$M$14:$M$1000)","v":0},0]

{"sheet":"Manut","index":3,"n_rows":18,"n_cols":6,"rows_kept":18,"cut":false,"hidden":false,"merged":[[9,2,9,5],[11,1,11,5]]}
[]
[]
[]
[]
[]
[]
[]
[]
[]
[null,"Empresa:",{"$f":"Menu!G26","v":"Empresa ABCDE"}]
[]
[null,"LANÇAMENTO DE MANUTENÇÕES\nInsira os lançamentos das manutenções preventivas e corretivas realizadas."]
[null,"DATA","VEÍCULO","TIPO DE MANUTEÇÃO","DESCRIÇÃO DA MANUTENÇÃO","VALOR DA MANUTENÇÃO"]
[null,"2020-02-01","CAMINHÃO VW 180","Corretiva","CONSERTO DA EMBREAGEM",350]
[null,"2020-03-01","CAMINHÃO VW 180","Corretiva","CONSERTO DO MOTOR DE PARTIDA",600]
[null,"2020-04-01","CAMINHÃO VW 180","Preventiva","TROCA DE ÓLEO",1000]
[null,"2020-04-01","UNO FILE 1.0","Preventiva","TROCA DE ÓLEO",250]
[null,"2020-05-01","UNO FILE 1.0","Corretiva","CONSERTO DO SISTEMA DE ARREFACIMENTO",150]

{"sheet":"Frete","index":4,"n_rows":1000,"n_cols":13,"rows_kept":1000,"cut":false,"hidden":false,"merged":[[9,2,9,11],[11,1,11,11]]}
[]
[]
[]
[]
[]
[]
[]
[]
[]
[null,"Empresa:",{"$f":"Menu!G26","v":"Empresa ABCDE"}]
[]
[null,"LANÇAMENTO DE FRETES\nInsira os lançamentos dos fretes realizados."]
[null,"DATA","VEÍCULO","MOTORISTA","DESTINO","KM IDA","KM VOLTA","KM RODADO","VALOR FRETE","DESPESAS COMBUSTÍVEL","DESPESAS MULTAS","OUTRAS DESPESAS","TOTAL DESPESAS"]
[null,"2020-02-01","CAMINHÃO VW 180","JOSÉ DA SILVA","SÃO PAULO",100000,102000,{"$f":"G14-F14","v":2000},10000,500,0,300,{"$f":"SUM(J14:L14)","v":800}]
[null,"2020-03-01","CAMINHÃO VW 180","JOSÉ DA SILVA","SÃO PAULO",102050,104000,{"$f":"G15-F15","v":1950},12000,800,0,300,{"$f":"SUM(J15:L15)","v":1100}]
[null,"2020-04-01","CAMINHÃO VW 180","JOSÉ DA SILVA","SÃO PAULO",104000,106000,2000,9500,600,0,300,900]
[null,"2020-04-01","UNO FILE 1.0","JOÃO PAULO ALVES","PERNAMBUCO",40000,44000,4000,4000,400,0,300,700]
[null,"2020-05-01","UNO FILE 1.0","JOÃO PAULO ALVES","PERNAMBUCO",44000,48000,4000,5000,600,0,300,900]
[null,null,null,null,null,null,null,0,null,null,null,null,0]
[null,null,null,null,null,null,null,0,null,null,null,null,0]
[null,null,null,null,null,null,null,0,null,null,null,null,0]
[null,null,null,null,null,null,null,0,null,null,null,null,0]
[null,null,null,null,null,null,null,0,null,null,null,null,0]
[null,null,null,null,null,null,null,0,null,null,null,null,0]
[null,null,null,null,null,null,null,0,null,null,null,null,0]
[null,null,null,null,null,null,null,0,null,null,null,null,0]
[null,null,null,null,null,null,null,0,null,null,null,null,0]
[null,null,null,null,null,null,null,0,null,null,null,null,0]
[null,null,null,null,null,null,null,0,null,null,null,null,0]
[null,null,null,null,null,null,null,0,null,null,null,null,0]
[null,null,null,null,null,null,null,0,null,null,null,null,0]
[null,null,null,null,null,null,null,0,null,null,null,null,0]
[null,null,null,null,null,null,null,0,null,null,null,null,0]
[null,null,null,null,null,null,null,0,null,null,null,null,0]
[null,null,null,null,null,null,null,0,null,null,null,null,0]
[null,null,null,null,null,null,null,0,null,null,null,null,0]
[null,null,null,null,null,null,null,0,null,null,null,null,0]
[null,null,null,null,null,null,null,0,null,null,null,null,0]
[null,null,null,null,null,null,null,0,null,null,null,null,0]
[null,null,null,null,null,null,null,0,null,null,null,null,0]
[null,null,null,null,null,null,null,0,null,null,null,null,0]
[null,null,null,null,null,null,null,0,null,null,null,null,0]
[null,null,null,null,null,null,null,0,null,null,null,null,0]
[null,null,null,null,null,null,null,{"$f":"G44-F44","v":0},null,null,null,null,{"$f":"SUM(J44:L44)","v":0}]
[null,null,null,null,null,null,null,0,null,null,null,null,0]
[null,null,null,null,null,null,null,0,null,null,null,null,0]
[null,null,null,null,null,null,null,0,null,null,null,null,0]
[null,null,null,null,null,null,null,0,null,null,null,null,0]
[null,null,null,null,null,null,null,0,null,null,null,null,0]
[null,null,null,null,null,null,null,0,null,null,null,null,0]
[null,null,null,null,null,null,null,0,null,null,null,null,0]
[null,null,null,null,null,null,null,0,null,null,null,null,0]
[null,null,null,null,null,null,null,0,null,null,null,null,0]
[null,null,null,null,null,null,null,0,null,null,null,null,0]
[null,null,null,null,null,null,null,0,null,null,null,null,0]
[null,null,null,null,null,null,null,0,null,null,null,null,0]
[null,null,null,null,null,null,null,0,null,null,null,null,0]
[null,null,null,null,null,null,null,0,null,null,null,null,0]
[null,null,null,null,null,null,null,0,null,null,null,null,0]
[null,null,null,null,null,null,null,0,null,null,null,null,0]
[null,null,null,null,null,null,null,0,null,null,null,null,0]
[null,null,null,null,null,null,null,0,null,null,null,null,0]
[null,null,null,null,null,null,null,0,null,null,null,null,0]
[null,null,null,null,null,null,null,0,null,null,null,null,0]
[null,null,null,null,null,null,null,0,null,null,null,null,0]
[null,null,null,null,null,null,null,0,null,null,null,null,0]
[null,null,null,null,null,null,null,0,null,null,null,null,0]
[null,null,null,null,null,null,null,0,null,null,null,null,0]
[null,null,null,null,null,null,null,0,null,null,null,null,0]
[null,null,null,null,null,null,null,0,null,null,null,null,0]
[null,null,null,null,null,null,null,0,null,null,null,null,0]
[null,null,null,null,null,null,null,0,null,null,null,null,0]
[null,null,null,null,null,null,null,0,null,null,null,null,0]
[null,null,null,null,null,null,null,0,null,null,null,null,0]
[null,null,null,null,null,null,null,0,null,null,null,null,0]
[null,null,null,null,null,null,null,0,null,null,null,null,0]
[null,null,null,null,null,null,null,0,null,null,null,null,0]
[null,null,null,null,null,null,null,0,null,null,null,null,0]
[null,null,null,null,null,null,null,0,null,null,null,null,0]
[null,null,null,null,null,null,null,0,null,null,null,null,0]
[null,null,null,null,null,null,null,0,null,null,null,null,0]
[null,null,null,null,null,null,null,0,null,null,null,null,0]
[null,null,null,null,null,null,null,0,null,null,null,null,0]
[null,null,null,null,null,null,null,0,null,null,null,null,0]
[null,null,null,null,null,null,null,0,null,null,null,null,0]
[null,null,null,null,null,null,null,0,null,null,null,null,0]
[null,null,null,null,null,null,null,0,null,null,null,null,0]
[null,null,null,null,null,null,null,0,null,null,null,null,0]
[null,null,null,null,null,null,null,0,null,null,null,null,0]
[null,null,null,null,null,null,null,0,null,null,null,null,0]
[null,null,null,null,null,null,null,0,null,null,null,null,0]
[null,null,null,null,null,null,null,0,null,null,null,null,0]
[null,null,null,null,null,null,null,0,null,null,null,null,0]
[null,null,null,null,null,null,null,0,null,null,null,null,0]
[null,null,null,null,null,null,null,0,null,null,null,null,0]
[null,null,null,null,null,null,null,0,null,null,null,null,0]
[null,null,null,null,null,null,null,0,null,null,null,null,0]
[null,null,null,null,null,null,null,0,null,null,null,null,0]
[null,null,null,null,null,null,null,0,null,null,null,null,0]
[null,null,null,null,null,null,null,0,null,null,null,null,0]
[null,null,null,null,null,null,null,0,null,null,null,null,0]
[null,null,null,null,null,null,null,0,null,null,null,null,0]
[null,null,null,null,null,null,null,0,null,null,null,null,0]
[null,null,null,null,null,null,null,0,null,null,null,null,0]
[null,null,null,null,null,null,null,0,null,null,null,null,0]
[null,null,null,null,null,null,null,0,null,null,null,null,0]
[null,null,null,null,null,null,null,0,null,null,null,null,0]
[null,null,null,null,null,null,null,{"$f":"G108-F108","v":0},null,null,null,null,{"$f":"SUM(J108:L108)","v":0}]
[null,null,null,null,null,null,null,0,null,null,null,null,0]
[null,null,null,null,null,null,null,0,null,null,null,null,0]
[null,null,null,null,null,null,null,0,null,null,null,null,0]
[null,null,null,null,null,null,null,0,null,null,null,null,0]
[null,null,null,null,null,null,null,0,null,null,null,null,0]
[null,null,null,null,null,null,null,0,null,null,null,null,0]
[null,null,null,null,null,null,null,0,null,null,null,null,0]
[null,null,null,null,null,null,null,0,null,null,null,null,0]
[null,null,null,null,null,null,null,0,null,null,null,null,0]
[null,null,null,null,null,null,null,0,null,null,null,null,0]
[null,null,null,null,null,null,null,0,null,null,null,null,0]
[null,null,null,null,null,null,null,0,null,null,null,null,0]
[null,null,null,null,null,null,null,0,null,null,null,null,0]
[null,null,null,null,null,null,null,0,null,null,null,null,0]
[null,null,null,null,null,null,null,0,null,null,null,null,0]
[null,null,null,null,null,null,null,0,null,null,null,null,0]
[null,null,null,null,null,null,null,0,null,null,null,null,0]
[null,null,null,null,null,null,null,0,null,null,null,null,0]
[null,null,null,null,null,null,null,0,null,null,null,null,0]
[null,null,null,null,null,null,null,0,null,null,null,null,0]
[null,null,null,null,null,null,null,0,null,null,null,null,0]
[null,null,null,null,null,null,null,0,null,null,null,null,0]
[null,null,null,null,null,null,null,0,null,null,null,null,0]
[null,null,null,null,null,null,null,0,null,null,null,null,0]
[null,null,null,null,null,null,null,0,null,null,null,null,0]
[null,null,null,null,null,null,null,0,null,null,null,null,0]
[null,null,null,null,null,null,null,0,null,null,null,null,0]
[null,null,null,null,null,null,null,0,null,null,null,null,0]
[null,null,null,null,null,null,null,0,null,null,null,null,0]
[null,null,null,null,null,null,null,0,null,null,null,null,0]
[null,null,null,null,null,null,null,0,null,null,null,null,0]
[null,null,null,null,null,null,null,0,null,null,null,null,0]
[null,null,null,null,null,null,null,0,null,null,null,null,0]
[null,null,null,null,null,null,null,0,null,null,null,null,0]
[null,null,null,null,null,null,null,0,null,null,null,null,0]
[null,null,null,null,null,null,null,0,null,null,null,null,0]
[null,null,null,null,null,null,null,0,null,null,null,null,0]
[null,null,null,null,null,null,null,0,null,null,null,null,0]
[null,null,null,null,null,null,null,0,null,null,null,null,0]
[null,null,null,null,null,null,null,0,null,null,null,null,0]
[null,null,null,null,null,null,null,0,null,null,null,null,0]
[null,null,null,null,null,null,null,0,null,null,null,null,0]
[null,null,null,null,null,null,null,0,null,null,null,null,0]
[null,null,null,null,null,null,null,0,null,null,null,null,0]
[null,null,null,null,null,null,null,0,null,null,null,null,0]
[null,null,null,null,null,null,null,0,null,null,null,null,0]
[null,null,null,null,null,null,null,0,null,null,null,null,0]
[null,null,null,null,null,null,null,0,null,null,null,null,0]
[null,null,null,null,null,null,null,0,null,null,null,null,0]
[null,null,null,null,null,null,null,0,null,null,null,null,0]
[null,null,null,null,null,null,null,0,null,null,null,null,0]
[null,null,null,null,null,null,null,0,null,null,null,null,0]
[null,null,null,null,null,null,null,0,null,null,null,null,0]
[null,null,null,null,null,null,null,0,null,null,null,null,0]
[null,null,null,null,null,null,null,0,null,null,null,null,0]
[null,null,null,null,null,null,null,0,null,null,null,null,0]
[null,null,null,null,null,null,null,0,null,null,null,null,0]
[null,null,null,null,null,null,null,0,null,null,null,null,0]
[null,null,null,null,null,null,null,0,null,null,null,null,0]
[null,null,null,null,null,null,null,0,null,null,null,null,0]
[null,null,null,null,null,null,null,0,null,null,null,null,0]
[null,null,null,null,null,null,null,0,null,null,null,null,0]
[null,null,null,null,null,null,null,0,null,null,null,null,0]
[null,null,null,null,null,null,null,{"$f":"G172-F172","v":0},null,null,null,null,{"$f":"SUM(J172:L172)","v":0}]
[null,null,null,null,null,null,null,0,null,null,null,null,0]
[null,null,null,null,null,null,null,0,null,null,null,null,0]
[null,null,null,null,null,null,null,0,null,null,null,null,0]
[null,null,null,null,null,null,null,0,null,null,null,null,0]
[null,null,null,null,null,null,null,0,null,null,null,null,0]
[null,null,null,null,null,null,null,0,null,null,null,null,0]
[null,null,null,null,null,null,null,0,null,null,null,null,0]
[null,null,null,null,null,null,null,0,null,null,null,null,0]
[null,null,null,null,null,null,null,0,null,null,null,null,0]
[null,null,null,null,null,null,null,0,null,null,null,null,0]
[null,null,null,null,null,null,null,0,null,null,null,null,0]
[null,null,null,null,null,null,null,0,null,null,null,null,0]
[null,null,null,null,null,null,null,0,null,null,null,null,0]
[null,null,null,null,null,null,null,0,null,null,null,null,0]
[null,null,null,null,null,null,null,0,null,null,null,null,0]
[null,null,null,null,null,null,null,0,null,null,null,null,0]
[null,null,null,null,null,null,null,0,null,null,null,null,0]
[null,null,null,null,null,null,null,0,null,null,null,null,0]
[null,null,null,null,null,null,null,0,null,null,null,null,0]
[null,null,null,null,null,null,null,0,null,null,null,null,0]
[null,null,null,null,null,null,null,0,null,null,null,null,0]
[null,null,null,null,null,null,null,0,null,null,null,null,0]
[null,null,null,null,null,null,null,0,null,null,null,null,0]
[null,null,null,null,null,null,null,0,null,null,null,null,0]
[null,null,null,null,null,null,null,0,null,null,null,null,0]
[null,null,null,null,null,null,null,0,null,null,null,null,0]
[null,null,null,null,null,null,null,0,null,null,null,null,0]
[null,null,null,null,null,null,null,0,null,null,null,null,0]
[null,null,null,null,null,null,null,0,null,null,null,null,0]
[null,null,null,null,null,null,null,0,null,null,null,null,0]
[null,null,null,null,null,null,null,0,null,null,null,null,0]
[null,null,null,null,null,null,null,0,null,null,null,null,0]
[null,null,null,null,null,null,null,0,null,null,null,null,0]
[null,null,null,null,null,null,null,0,null,null,null,null,0]
[null,null,null,null,null,null,null,0,null,null,null,null,0]
[null,null,null,null,null,null,null,0,null,null,null,null,0]
[null,null,null,null,null,null,null,0,null,null,null,null,0]
[null,null,null,null,null,null,null,0,null,null,null,null,0]
[null,null,null,null,null,null,null,0,null,null,null,null,0]
[null,null,null,null,null,null,null,0,null,null,null,null,0]
[null,null,null,null,null,null,null,0,null,null,null,null,0]
[null,null,null,null,null,null,null,0,null,null,null,null,0]
[null,null,null,null,null,null,null,0,null,null,null,null,0]
[null,null,null,null,null,null,null,0,null,null,null,null,0]
[null,null,null,null,null,null,null,0,null,null,null,null,0]
[null,null,null,null,null,null,null,0,null,null,null,null,0]
[null,null,null,null,null,null,null,0,null,null,null,null,0]
[null,null,null,null,null,null,null,0,null,null,null,null,0]
[null,null,null,null,null,null,null,0,null,null,null,null,0]
[null,null,null,null,null,null,null,0,null,null,null,null,0]
[null,null,null,null,null,null,null,0,null,null,null,null,0]
[null,null,null,null,null,null,null,0,null,null,null,null,0]
[null,null,null,null,null,null,null,0,null,null,null,null,0]
[null,null,null,null,null,null,null,0,null,null,null,null,0]
[null,null,null,null,null,null,null,0,null,null,null,null,0]
[null,null,null,null,null,null,null,0,null,null,null,null,0]
[null,null,null,null,null,null,null,0,null,null,null,null,0]
[null,null,null,null,null,null,null,0,null,null,null,null,0]
[null,null,null,null,null,null,null,0,null,null,null,null,0]
[null,null,null,null,null,null,null,0,null,null,null,null,0]
[null,null,null,null,null,null,null,0,null,null,null,null,0]
[null,null,null,null,null,null,null,0,null,null,null,null,0]
[null,null,null,null,null,null,null,0,null,null,null,null,0]
[null,null,null,null,null,null,null,{"$f":"G236-F236","v":0},null,null,null,null,{"$f":"SUM(J236:L236)","v":0}]
[null,null,null,null,null,null,null,0,null,null,null,null,0]
[null,null,null,null,null,null,null,0,null,null,null,null,0]
[null,null,null,null,null,null,null,0,null,null,null,null,0]
[null,null,null,null,null,null,null,0,null,null,null,null,0]
[null,null,null,null,null,null,null,0,null,null,null,null,0]
[null,null,null,null,null,null,null,0,null,null,null,null,0]
[null,null,null,null,null,null,null,0,null,null,null,null,0]
[null,null,null,null,null,null,null,0,null,null,null,null,0]
[null,null,null,null,null,null,null,0,null,null,null,null,0]
[null,null,null,null,null,null,null,0,null,null,null,null,0]
[null,null,null,null,null,null,null,0,null,null,null,null,0]
[null,null,null,null,null,null,null,0,null,null,null,null,0]
[null,null,null,null,null,null,null,0,null,null,null,null,0]
[null,null,null,null,null,null,null,0,null,null,null,null,0]
[null,null,null,null,null,null,null,0,null,null,null,null,0]
[null,null,null,null,null,null,null,0,null,null,null,null,0]
[null,null,null,null,null,null,null,0,null,null,null,null,0]
[null,null,null,null,null,null,null,0,null,null,null,null,0]
[null,null,null,null,null,null,null,0,null,null,null,null,0]
[null,null,null,null,null,null,null,0,null,null,null,null,0]
[null,null,null,null,null,null,null,0,null,null,null,null,0]
[null,null,null,null,null,null,null,0,null,null,null,null,0]
[null,null,null,null,null,null,null,0,null,null,null,null,0]
[null,null,null,null,null,null,null,0,null,null,null,null,0]
[null,null,null,null,null,null,null,0,null,null,null,null,0]
[null,null,null,null,null,null,null,0,null,null,null,null,0]
[null,null,null,null,null,null,null,0,null,null,null,null,0]
[null,null,null,null,null,null,null,0,null,null,null,null,0]
[null,null,null,null,null,null,null,0,null,null,null,null,0]
[null,null,null,null,null,null,null,0,null,null,null,null,0]
[null,null,null,null,null,null,null,0,null,null,null,null,0]
[null,null,null,null,null,null,null,0,null,null,null,null,0]
[null,null,null,null,null,null,null,0,null,null,null,null,0]
[null,null,null,null,null,null,null,0,null,null,null,null,0]
[null,null,null,null,null,null,null,0,null,null,null,null,0]
[null,null,null,null,null,null,null,0,null,null,null,null,0]
[null,null,null,null,null,null,null,0,null,null,null,null,0]
[null,null,null,null,null,null,null,0,null,null,null,null,0]
[null,null,null,null,null,null,null,0,null,null,null,null,0]
[null,null,null,null,null,null,null,0,null,null,null,null,0]
[null,null,null,null,null,null,null,0,null,null,null,null,0]
[null,null,null,null,null,null,null,0,null,null,null,null,0]
[null,null,null,null,null,null,null,0,null,null,null,null,0]
[null,null,null,null,null,null,null,0,null,null,null,null,0]
[null,null,null,null,null,null,null,0,null,null,null,null,0]
[null,null,null,null,null,null,null,0,null,null,null,null,0]
[null,null,null,null,null,null,null,0,null,null,null,null,0]
[null,null,null,null,null,null,null,0,null,null,null,null,0]
[null,null,null,null,null,null,null,0,null,null,null,null,0]
[null,null,null,null,null,null,null,0,null,null,null,null,0]
[null,null,null,null,null,null,null,0,null,null,null,null,0]
[null,null,null,null,null,null,null,0,null,null,null,null,0]
[null,null,null,null,null,null,null,0,null,null,null,null,0]
[null,null,null,null,null,null,null,0,null,null,null,null,0]
[null,null,null,null,null,null,null,0,null,null,null,null,0]
[null,null,null,null,null,null,null,0,null,null,null,null,0]
[null,null,null,null,null,null,null,0,null,null,null,null,0]
[null,null,null,null,null,null,null,0,null,null,null,null,0]
[null,null,null,null,null,null,null,0,null,null,null,null,0]
[null,null,null,null,null,null,null,0,null,null,null,null,0]
[null,null,null,null,null,null,null,0,null,null,null,null,0]
[null,null,null,null,null,null,null,0,null,null,null,null,0]
[null,null,null,null,null,null,null,0,null,null,null,null,0]
[null,null,null,null,null,null,null,{"$f":"G300-F300","v":0},null,null,null,null,{"$f":"SUM(J300:L300)","v":0}]
[null,null,null,null,null,null,null,0,null,null,null,null,0]
[null,null,null,null,null,null,null,0,null,null,null,null,0]
[null,null,null,null,null,null,null,0,null,null,null,null,0]
[null,null,null,null,null,null,null,0,null,null,null,null,0]
[null,null,null,null,null,null,null,0,null,null,null,null,0]
[null,null,null,null,null,null,null,0,null,null,null,null,0]
[null,null,null,null,null,null,null,0,null,null,null,null,0]
[null,null,null,null,null,null,null,0,null,null,null,null,0]
[null,null,null,null,null,null,null,0,null,null,null,null,0]
[null,null,null,null,null,null,null,0,null,null,null,null,0]
[null,null,null,null,null,null,null,0,null,null,null,null,0]
[null,null,null,null,null,null,null,0,null,null,null,null,0]
[null,null,null,null,null,null,null,0,null,null,null,null,0]
[null,null,null,null,null,null,null,0,null,null,null,null,0]
[null,null,null,null,null,null,null,0,null,null,null,null,0]
[null,null,null,null,null,null,null,0,null,null,null,null,0]
[null,null,null,null,null,null,null,0,null,null,null,null,0]
[null,null,null,null,null,null,null,0,null,null,null,null,0]
[null,null,null,null,null,null,null,0,null,null,null,null,0]
[null,null,null,null,null,null,null,0,null,null,null,null,0]
[null,null,null,null,null,null,null,0,null,null,null,null,0]
[null,null,null,null,null,null,null,0,null,null,null,null,0]
[null,null,null,null,null,null,null,0,null,null,null,null,0]
[null,null,null,null,null,null,null,0,null,null,null,null,0]
[null,null,null,null,null,null,null,0,null,null,null,null,0]
[null,null,null,null,null,null,null,0,null,null,null,null,0]
[null,null,null,null,null,null,null,0,null,null,null,null,0]
[null,null,null,null,null,null,null,0,null,null,null,null,0]
[null,null,null,null,null,null,null,0,null,null,null,null,0]
[null,null,null,null,null,null,null,0,null,null,null,null,0]
[null,null,null,null,null,null,null,0,null,null,null,null,0]
[null,null,null,null,null,null,null,0,null,null,null,null,0]
[null,null,null,null,null,null,null,0,null,null,null,null,0]
[null,null,null,null,null,null,null,0,null,null,null,null,0]
[null,null,null,null,null,null,null,0,null,null,null,null,0]
[null,null,null,null,null,null,null,0,null,null,null,null,0]
[null,null,null,null,null,null,null,0,null,null,null,null,0]
[null,null,null,null,null,null,null,0,null,null,null,null,0]
[null,null,null,null,null,null,null,0,null,null,null,null,0]
[null,null,null,null,null,null,null,0,null,null,null,null,0]
[null,null,null,null,null,null,null,0,null,null,null,null,0]
[null,null,null,null,null,null,null,0,null,null,null,null,0]
[null,null,null,null,null,null,null,0,null,null,null,null,0]
[null,null,null,null,null,null,null,0,null,null,null,null,0]
[null,null,null,null,null,null,null,0,null,null,null,null,0]
[null,null,null,null,null,null,null,0,null,null,null,null,0]
[null,null,null,null,null,null,null,0,null,null,null,null,0]
[null,null,null,null,null,null,null,0,null,null,null,null,0]
[null,null,null,null,null,null,null,0,null,null,null,null,0]
[null,null,null,null,null,null,null,0,null,null,null,null,0]
[null,null,null,null,null,null,null,0,null,null,null,null,0]
[null,null,null,null,null,null,null,0,null,null,null,null,0]
[null,null,null,null,null,null,null,0,null,null,null,null,0]
[null,null,null,null,null,null,null,0,null,null,null,null,0]
[null,null,null,null,null,null,null,0,null,null,null,null,0]
[null,null,null,null,null,null,null,0,null,null,null,null,0]
[null,null,null,null,null,null,null,0,null,null,null,null,0]
[null,null,null,null,null,null,null,0,null,null,null,null,0]
[null,null,null,null,null,null,null,0,null,null,null,null,0]
[null,null,null,null,null,null,null,0,null,null,null,null,0]
[null,null,null,null,null,null,null,0,null,null,null,null,0]
[null,null,null,null,null,null,null,0,null,null,null,null,0]
[null,null,null,null,null,null,null,0,null,null,null,null,0]
[null,null,null,null,null,null,null,{"$f":"G364-F364","v":0},null,null,null,null,{"$f":"SUM(J364:L364)","v":0}]
[null,null,null,null,null,null,null,0,null,null,null,null,0]
[null,null,null,null,null,null,null,0,null,null,null,null,0]
[null,null,null,null,null,null,null,0,null,null,null,null,0]
[null,null,null,null,null,null,null,0,null,null,null,null,0]
[null,null,null,null,null,null,null,0,null,null,null,null,0]
[null,null,null,null,null,null,null,0,null,null,null,null,0]
[null,null,null,null,null,null,null,0,null,null,null,null,0]
[null,null,null,null,null,null,null,0,null,null,null,null,0]
[null,null,null,null,null,null,null,0,null,null,null,null,0]
[null,null,null,null,null,null,null,0,null,null,null,null,0]
[null,null,null,null,null,null,null,0,null,null,null,null,0]
[null,null,null,null,null,null,null,0,null,null,null,null,0]
[null,null,null,null,null,null,null,0,null,null,null,null,0]
[null,null,null,null,null,null,null,0,null,null,null,null,0]
[null,null,null,null,null,null,null,0,null,null,null,null,0]
[null,null,null,null,null,null,null,0,null,null,null,null,0]
[null,null,null,null,null,null,null,0,null,null,null,null,0]
[null,null,null,null,null,null,null,0,null,null,null,null,0]
[null,null,null,null,null,null,null,0,null,null,null,null,0]
[null,null,null,null,null,null,null,0,null,null,null,null,0]
[null,null,null,null,null,null,null,0,null,null,null,null,0]
[null,null,null,null,null,null,null,0,null,null,null,null,0]
[null,null,null,null,null,null,null,0,null,null,null,null,0]
[null,null,null,null,null,null,null,0,null,null,null,null,0]
[null,null,null,null,null,null,null,0,null,null,null,null,0]
[null,null,null,null,null,null,null,0,null,null,null,null,0]
[null,null,null,null,null,null,null,0,null,null,null,null,0]
[null,null,null,null,null,null,null,0,null,null,null,null,0]
[null,null,null,null,null,null,null,0,null,null,null,null,0]
[null,null,null,null,null,null,null,0,null,null,null,null,0]
[null,null,null,null,null,null,null,0,null,null,null,null,0]
[null,null,null,null,null,null,null,0,null,null,null,null,0]
[null,null,null,null,null,null,null,0,null,null,null,null,0]
[null,null,null,null,null,null,null,0,null,null,null,null,0]
[null,null,null,null,null,null,null,0,null,null,null,null,0]
[null,null,null,null,null,null,null,0,null,null,null,null,0]
[null,null,null,null,null,null,null,0,null,null,null,null,0]
[null,null,null,null,null,null,null,0,null,null,null,null,0]
[null,null,null,null,null,null,null,0,null,null,null,null,0]
[null,null,null,null,null,null,null,0,null,null,null,null,0]
[null,null,null,null,null,null,null,0,null,null,null,null,0]
[null,null,null,null,null,null,null,0,null,null,null,null,0]
[null,null,null,null,null,null,null,0,null,null,null,null,0]
[null,null,null,null,null,null,null,0,null,null,null,null,0]
[null,null,null,null,null,null,null,0,null,null,null,null,0]
[null,null,null,null,null,null,null,0,null,null,null,null,0]
[null,null,null,null,null,null,null,0,null,null,null,null,0]
[null,null,null,null,null,null,null,0,null,null,null,null,0]
[null,null,null,null,null,null,null,0,null,null,null,null,0]
[null,null,null,null,null,null,null,0,null,null,null,null,0]
[null,null,null,null,null,null,null,0,null,null,null,null,0]
[null,null,null,null,null,null,null,0,null,null,null,null,0]
[null,null,null,null,null,null,null,0,null,null,null,null,0]
[null,null,null,null,null,null,null,0,null,null,null,null,0]
[null,null,null,null,null,null,null,0,null,null,null,null,0]
[null,null,null,null,null,null,null,0,null,null,null,null,0]
[null,null,null,null,null,null,null,0,null,null,null,null,0]
[null,null,null,null,null,null,null,0,null,null,null,null,0]
[null,null,null,null,null,null,null,0,null,null,null,null,0]
[null,null,null,null,null,null,null,0,null,null,null,null,0]
[null,null,null,null,null,null,null,0,null,null,null,null,0]
[null,null,null,null,null,null,null,0,null,null,null,null,0]
[null,null,null,null,null,null,null,0,null,null,null,null,0]
[null,null,null,null,null,null,null,{"$f":"G428-F428","v":0},null,null,null,null,{"$f":"SUM(J428:L428)","v":0}]
[null,null,null,null,null,null,null,0,null,null,null,null,0]
[null,null,null,null,null,null,null,0,null,null,null,null,0]
[null,null,null,null,null,null,null,0,null,null,null,null,0]
[null,null,null,null,null,null,null,0,null,null,null,null,0]
[null,null,null,null,null,null,null,0,null,null,null,null,0]
[null,null,null,null,null,null,null,0,null,null,null,null,0]
[null,null,null,null,null,null,null,0,null,null,null,null,0]
[null,null,null,null,null,null,null,0,null,null,null,null,0]
[null,null,null,null,null,null,null,0,null,null,null,null,0]
[null,null,null,null,null,null,null,0,null,null,null,null,0]
[null,null,null,null,null,null,null,0,null,null,null,null,0]
[null,null,null,null,null,null,null,0,null,null,null,null,0]
[null,null,null,null,null,null,null,0,null,null,null,null,0]
[null,null,null,null,null,null,null,0,null,null,null,null,0]
[null,null,null,null,null,null,null,0,null,null,null,null,0]
[null,null,null,null,null,null,null,0,null,null,null,null,0]
[null,null,null,null,null,null,null,0,null,null,null,null,0]
[null,null,null,null,null,null,null,0,null,null,null,null,0]
[null,null,null,null,null,null,null,0,null,null,null,null,0]
[null,null,null,null,null,null,null,0,null,null,null,null,0]
[null,null,null,null,null,null,null,0,null,null,null,null,0]
[null,null,null,null,null,null,null,0,null,null,null,null,0]
[null,null,null,null,null,null,null,0,null,null,null,null,0]
[null,null,null,null,null,null,null,0,null,null,null,null,0]
[null,null,null,null,null,null,null,0,null,null,null,null,0]
[null,null,null,null,null,null,null,0,null,null,null,null,0]
[null,null,null,null,null,null,null,0,null,null,null,null,0]
[null,null,null,null,null,null,null,0,null,null,null,null,0]
[null,null,null,null,null,null,null,0,null,null,null,null,0]
[null,null,null,null,null,null,null,0,null,null,null,null,0]
[null,null,null,null,null,null,null,0,null,null,null,null,0]
[null,null,null,null,null,null,null,0,null,null,null,null,0]
[null,null,null,null,null,null,null,0,null,null,null,null,0]
[null,null,null,null,null,null,null,0,null,null,null,null,0]
[null,null,null,null,null,null,null,0,null,null,null,null,0]
[null,null,null,null,null,null,null,0,null,null,null,null,0]
[null,null,null,null,null,null,null,0,null,null,null,null,0]
[null,null,null,null,null,null,null,0,null,null,null,null,0]
[null,null,null,null,null,null,null,0,null,null,null,null,0]
[null,null,null,null,null,null,null,0,null,null,null,null,0]
[null,null,null,null,null,null,null,0,null,null,null,null,0]
[null,null,null,null,null,null,null,0,null,null,null,null,0]
[null,null,null,null,null,null,null,0,null,null,null,null,0]
[null,null,null,null,null,null,null,0,null,null,null,null,0]
[null,null,null,null,null,null,null,0,null,null,null,null,0]
[null,null,null,null,null,null,null,0,null,null,null,null,0]
[null,null,null,null,null,null,null,0,null,null,null,null,0]
[null,null,null,null,null,null,null,0,null,null,null,null,0]
[null,null,null,null,null,null,null,0,null,null,null,null,0]
[null,null,null,null,null,null,null,0,null,null,null,null,0]
[null,null,null,null,null,null,null,0,null,null,null,null,0]
[null,null,null,null,null,null,null,0,null,null,null,null,0]
[null,null,null,null,null,null,null,0,null,null,null,null,0]
[null,null,null,null,null,null,null,0,null,null,null,null,0]
[null,null,null,null,null,null,null,0,null,null,null,null,0]
[null,null,null,null,null,null,null,0,null,null,null,null,0]
[null,null,null,null,null,null,null,0,null,null,null,null,0]
[null,null,null,null,null,null,null,0,null,null,null,null,0]
[null,null,null,null,null,null,null,0,null,null,null,null,0]
[null,null,null,null,null,null,null,0,null,null,null,null,0]
[null,null,null,null,null,null,null,0,null,null,null,null,0]
[null,null,null,null,null,null,null,0,null,null,null,null,0]
[null,null,null,null,null,null,null,0,null,null,null,null,0]
[null,null,null,null,null,null,null,{"$f":"G492-F492","v":0},null,null,null,null,{"$f":"SUM(J492:L492)","v":0}]
[null,null,null,null,null,null,null,0,null,null,null,null,0]
[null,null,null,null,null,null,null,0,null,null,null,null,0]
[null,null,null,null,null,null,null,0,null,null,null,null,0]
[null,null,null,null,null,null,null,0,null,null,null,null,0]
[null,null,null,null,null,null,null,0,null,null,null,null,0]
[null,null,null,null,null,null,null,0,null,null,null,null,0]
[null,null,null,null,null,null,null,0,null,null,null,null,0]
[null,null,null,null,null,null,null,0,null,null,null,null,0]
[null,null,null,null,null,null,null,0,null,null,null,null,0]
[null,null,null,null,null,null,null,0,null,null,null,null,0]
[null,null,null,null,null,null,null,0,null,null,null,null,0]
[null,null,null,null,null,null,null,0,null,null,null,null,0]
[null,null,null,null,null,null,null,0,null,null,null,null,0]
[null,null,null,null,null,null,null,0,null,null,null,null,0]
[null,null,null,null,null,null,null,0,null,null,null,null,0]
[null,null,null,null,null,null,null,0,null,null,null,null,0]
[null,null,null,null,null,null,null,0,null,null,null,null,0]
[null,null,null,null,null,null,null,0,null,null,null,null,0]
[null,null,null,null,null,null,null,0,null,null,null,null,0]
[null,null,null,null,null,null,null,0,null,null,null,null,0]
[null,null,null,null,null,null,null,0,null,null,null,null,0]
[null,null,null,null,null,null,null,0,null,null,null,null,0]
[null,null,null,null,null,null,null,0,null,null,null,null,0]
[null,null,null,null,null,null,null,0,null,null,null,null,0]
[null,null,null,null,null,null,null,0,null,null,null,null,0]
[null,null,null,null,null,null,null,0,null,null,null,null,0]
[null,null,null,null,null,null,null,0,null,null,null,null,0]
[null,null,null,null,null,null,null,0,null,null,null,null,0]
[null,null,null,null,null,null,null,0,null,null,null,null,0]
[null,null,null,null,null,null,null,0,null,null,null,null,0]
[null,null,null,null,null,null,null,0,null,null,null,null,0]
[null,null,null,null,null,null,null,0,null,null,null,null,0]
[null,null,null,null,null,null,null,0,null,null,null,null,0]
[null,null,null,null,null,null,null,0,null,null,null,null,0]
[null,null,null,null,null,null,null,0,null,null,null,null,0]
[null,null,null,null,null,null,null,0,null,null,null,null,0]
[null,null,null,null,null,null,null,0,null,null,null,null,0]
[null,null,null,null,null,null,null,0,null,null,null,null,0]
[null,null,null,null,null,null,null,0,null,null,null,null,0]
[null,null,null,null,null,null,null,0,null,null,null,null,0]
[null,null,null,null,null,null,null,0,null,null,null,null,0]
[null,null,null,null,null,null,null,0,null,null,null,null,0]
[null,null,null,null,null,null,null,0,null,null,null,null,0]
[null,null,null,null,null,null,null,0,null,null,null,null,0]
[null,null,null,null,null,null,null,0,null,null,null,null,0]
[null,null,null,null,null,null,null,0,null,null,null,null,0]
[null,null,null,null,null,null,null,0,null,null,null,null,0]
[null,null,null,null,null,null,null,0,null,null,null,null,0]
[null,null,null,null,null,null,null,0,null,null,null,null,0]
[null,null,null,null,null,null,null,0,null,null,null,null,0]
[null,null,null,null,null,null,null,0,null,null,null,null,0]
[null,null,null,null,null,null,null,0,null,null,null,null,0]
[null,null,null,null,null,null,null,0,null,null,null,null,0]
[null,null,null,null,null,null,null,0,null,null,null,null,0]
[null,null,null,null,null,null,null,0,null,null,null,null,0]
[null,null,null,null,null,null,null,0,null,null,null,null,0]
[null,null,null,null,null,null,null,0,null,null,null,null,0]
[null,null,null,null,null,null,null,0,null,null,null,null,0]
[null,null,null,null,null,null,null,0,null,null,null,null,0]
[null,null,null,null,null,null,null,0,null,null,null,null,0]
[null,null,null,null,null,null,null,0,null,null,null,null,0]
[null,null,null,null,null,null,null,0,null,null,null,null,0]
[null,null,null,null,null,null,null,0,null,null,null,null,0]
[null,null,null,null,null,null,null,{"$f":"G556-F556","v":0},null,null,null,null,{"$f":"SUM(J556:L556)","v":0}]
[null,null,null,null,null,null,null,0,null,null,null,null,0]
[null,null,null,null,null,null,null,0,null,null,null,null,0]
[null,null,null,null,null,null,null,0,null,null,null,null,0]
[null,null,null,null,null,null,null,0,null,null,null,null,0]
[null,null,null,null,null,null,null,0,null,null,null,null,0]
[null,null,null,null,null,null,null,0,null,null,null,null,0]
[null,null,null,null,null,null,null,0,null,null,null,null,0]
[null,null,null,null,null,null,null,0,null,null,null,null,0]
[null,null,null,null,null,null,null,0,null,null,null,null,0]
[null,null,null,null,null,null,null,0,null,null,null,null,0]
[null,null,null,null,null,null,null,0,null,null,null,null,0]
[null,null,null,null,null,null,null,0,null,null,null,null,0]
[null,null,null,null,null,null,null,0,null,null,null,null,0]
[null,null,null,null,null,null,null,0,null,null,null,null,0]
[null,null,null,null,null,null,null,0,null,null,null,null,0]
[null,null,null,null,null,null,null,0,null,null,null,null,0]
[null,null,null,null,null,null,null,0,null,null,null,null,0]
[null,null,null,null,null,null,null,0,null,null,null,null,0]
[null,null,null,null,null,null,null,0,null,null,null,null,0]
[null,null,null,null,null,null,null,0,null,null,null,null,0]
[null,null,null,null,null,null,null,0,null,null,null,null,0]
[null,null,null,null,null,null,null,0,null,null,null,null,0]
[null,null,null,null,null,null,null,0,null,null,null,null,0]
[null,null,null,null,null,null,null,0,null,null,null,null,0]
[null,null,null,null,null,null,null,0,null,null,null,null,0]
[null,null,null,null,null,null,null,0,null,null,null,null,0]
[null,null,null,null,null,null,null,0,null,null,null,null,0]
[null,null,null,null,null,null,null,0,null,null,null,null,0]
[null,null,null,null,null,null,null,0,null,null,null,null,0]
[null,null,null,null,null,null,null,0,null,null,null,null,0]
[null,null,null,null,null,null,null,0,null,null,null,null,0]
[null,null,null,null,null,null,null,0,null,null,null,null,0]
[null,null,null,null,null,null,null,0,null,null,null,null,0]
[null,null,null,null,null,null,null,0,null,null,null,null,0]
[null,null,null,null,null,null,null,0,null,null,null,null,0]
[null,null,null,null,null,null,null,0,null,null,null,null,0]
[null,null,null,null,null,null,null,0,null,null,null,null,0]
[null,null,null,null,null,null,null,0,null,null,null,null,0]
[null,null,null,null,null,null,null,0,null,null,null,null,0]
[null,null,null,null,null,null,null,0,null,null,null,null,0]
[null,null,null,null,null,null,null,0,null,null,null,null,0]
[null,null,null,null,null,null,null,0,null,null,null,null,0]
[null,null,null,null,null,null,null,0,null,null,null,null,0]
[null,null,null,null,null,null,null,0,null,null,null,null,0]
[null,null,null,null,null,null,null,0,null,null,null,null,0]
[null,null,null,null,null,null,null,0,null,null,null,null,0]
[null,null,null,null,null,null,null,0,null,null,null,null,0]
[null,null,null,null,null,null,null,0,null,null,null,null,0]
[null,null,null,null,null,null,null,0,null,null,null,null,0]
[null,null,null,null,null,null,null,0,null,null,null,null,0]
[null,null,null,null,null,null,null,0,null,null,null,null,0]
[null,null,null,null,null,null,null,0,null,null,null,null,0]
[null,null,null,null,null,null,null,0,null,null,null,null,0]
[null,null,null,null,null,null,null,0,null,null,null,null,0]
[null,null,null,null,null,null,null,0,null,null,null,null,0]
[null,null,null,null,null,null,null,0,null,null,null,null,0]
[null,null,null,null,null,null,null,0,null,null,null,null,0]
[null,null,null,null,null,null,null,0,null,null,null,null,0]
[null,null,null,null,null,null,null,0,null,null,null,null,0]
[null,null,null,null,null,null,null,0,null,null,null,null,0]
[null,null,null,null,null,null,null,0,null,null,null,null,0]
[null,null,null,null,null,null,null,0,null,null,null,null,0]
[null,null,null,null,null,null,null,0,null,null,null,null,0]
[null,null,null,null,null,null,null,{"$f":"G620-F620","v":0},null,null,null,null,{"$f":"SUM(J620:L620)","v":0}]
[null,null,null,null,null,null,null,0,null,null,null,null,0]
[null,null,null,null,null,null,null,0,null,null,null,null,0]
[null,null,null,null,null,null,null,0,null,null,null,null,0]
[null,null,null,null,null,null,null,0,null,null,null,null,0]
[null,null,null,null,null,null,null,0,null,null,null,null,0]
[null,null,null,null,null,null,null,0,null,null,null,null,0]
[null,null,null,null,null,null,null,0,null,null,null,null,0]
[null,null,null,null,null,null,null,0,null,null,null,null,0]
[null,null,null,null,null,null,null,0,null,null,null,null,0]
[null,null,null,null,null,null,null,0,null,null,null,null,0]
[null,null,null,null,null,null,null,0,null,null,null,null,0]
[null,null,null,null,null,null,null,0,null,null,null,null,0]
[null,null,null,null,null,null,null,0,null,null,null,null,0]
[null,null,null,null,null,null,null,0,null,null,null,null,0]
[null,null,null,null,null,null,null,0,null,null,null,null,0]
[null,null,null,null,null,null,null,0,null,null,null,null,0]
[null,null,null,null,null,null,null,0,null,null,null,null,0]
[null,null,null,null,null,null,null,0,null,null,null,null,0]
[null,null,null,null,null,null,null,0,null,null,null,null,0]
[null,null,null,null,null,null,null,0,null,null,null,null,0]
[null,null,null,null,null,null,null,0,null,null,null,null,0]
[null,null,null,null,null,null,null,0,null,null,null,null,0]
[null,null,null,null,null,null,null,0,null,null,null,null,0]
[null,null,null,null,null,null,null,0,null,null,null,null,0]
[null,null,null,null,null,null,null,0,null,null,null,null,0]
[null,null,null,null,null,null,null,0,null,null,null,null,0]
[null,null,null,null,null,null,null,0,null,null,null,null,0]
[null,null,null,null,null,null,null,0,null,null,null,null,0]
[null,null,null,null,null,null,null,0,null,null,null,null,0]
[null,null,null,null,null,null,null,0,null,null,null,null,0]
[null,null,null,null,null,null,null,0,null,null,null,null,0]
[null,null,null,null,null,null,null,0,null,null,null,null,0]
[null,null,null,null,null,null,null,0,null,null,null,null,0]
[null,null,null,null,null,null,null,0,null,null,null,null,0]
[null,null,null,null,null,null,null,0,null,null,null,null,0]
[null,null,null,null,null,null,null,0,null,null,null,null,0]
[null,null,null,null,null,null,null,0,null,null,null,null,0]
[null,null,null,null,null,null,null,0,null,null,null,null,0]
[null,null,null,null,null,null,null,0,null,null,null,null,0]
[null,null,null,null,null,null,null,0,null,null,null,null,0]
[null,null,null,null,null,null,null,0,null,null,null,null,0]
[null,null,null,null,null,null,null,0,null,null,null,null,0]
[null,null,null,null,null,null,null,0,null,null,null,null,0]
[null,null,null,null,null,null,null,0,null,null,null,null,0]
[null,null,null,null,null,null,null,0,null,null,null,null,0]
[null,null,null,null,null,null,null,0,null,null,null,null,0]
[null,null,null,null,null,null,null,0,null,null,null,null,0]
[null,null,null,null,null,null,null,0,null,null,null,null,0]
[null,null,null,null,null,null,null,0,null,null,null,null,0]
[null,null,null,null,null,null,null,0,null,null,null,null,0]
[null,null,null,null,null,null,null,0,null,null,null,null,0]
[null,null,null,null,null,null,null,0,null,null,null,null,0]
[null,null,null,null,null,null,null,0,null,null,null,null,0]
[null,null,null,null,null,null,null,0,null,null,null,null,0]
[null,null,null,null,null,null,null,0,null,null,null,null,0]
[null,null,null,null,null,null,null,0,null,null,null,null,0]
[null,null,null,null,null,null,null,0,null,null,null,null,0]
[null,null,null,null,null,null,null,0,null,null,null,null,0]
[null,null,null,null,null,null,null,0,null,null,null,null,0]
[null,null,null,null,null,null,null,0,null,null,null,null,0]
[null,null,null,null,null,null,null,0,null,null,null,null,0]
[null,null,null,null,null,null,null,0,null,null,null,null,0]
[null,null,null,null,null,null,null,0,null,null,null,null,0]
[null,null,null,null,null,null,null,{"$f":"G684-F684","v":0},null,null,null,null,{"$f":"SUM(J684:L684)","v":0}]
[null,null,null,null,null,null,null,0,null,null,null,null,0]
[null,null,null,null,null,null,null,0,null,null,null,null,0]
[null,null,null,null,null,null,null,0,null,null,null,null,0]
[null,null,null,null,null,null,null,0,null,null,null,null,0]
[null,null,null,null,null,null,null,0,null,null,null,null,0]
[null,null,null,null,null,null,null,0,null,null,null,null,0]
[null,null,null,null,null,null,null,0,null,null,null,null,0]
[null,null,null,null,null,null,null,0,null,null,null,null,0]
[null,null,null,null,null,null,null,0,null,null,null,null,0]
[null,null,null,null,null,null,null,0,null,null,null,null,0]
[null,null,null,null,null,null,null,0,null,null,null,null,0]
[null,null,null,null,null,null,null,0,null,null,null,null,0]
[null,null,null,null,null,null,null,0,null,null,null,null,0]
[null,null,null,null,null,null,null,0,null,null,null,null,0]
[null,null,null,null,null,null,null,0,null,null,null,null,0]
[null,null,null,null,null,null,null,0,null,null,null,null,0]
[null,null,null,null,null,null,null,0,null,null,null,null,0]
[null,null,null,null,null,null,null,0,null,null,null,null,0]
[null,null,null,null,null,null,null,0,null,null,null,null,0]
[null,null,null,null,null,null,null,0,null,null,null,null,0]
[null,null,null,null,null,null,null,0,null,null,null,null,0]
[null,null,null,null,null,null,null,0,null,null,null,null,0]
[null,null,null,null,null,null,null,0,null,null,null,null,0]
[null,null,null,null,null,null,null,0,null,null,null,null,0]
[null,null,null,null,null,null,null,0,null,null,null,null,0]
[null,null,null,null,null,null,null,0,null,null,null,null,0]
[null,null,null,null,null,null,null,0,null,null,null,null,0]
[null,null,null,null,null,null,null,0,null,null,null,null,0]
[null,null,null,null,null,null,null,0,null,null,null,null,0]
[null,null,null,null,null,null,null,0,null,null,null,null,0]
[null,null,null,null,null,null,null,0,null,null,null,null,0]
[null,null,null,null,null,null,null,0,null,null,null,null,0]
[null,null,null,null,null,null,null,0,null,null,null,null,0]
[null,null,null,null,null,null,null,0,null,null,null,null,0]
[null,null,null,null,null,null,null,0,null,null,null,null,0]
[null,null,null,null,null,null,null,0,null,null,null,null,0]
[null,null,null,null,null,null,null,0,null,null,null,null,0]
[null,null,null,null,null,null,null,0,null,null,null,null,0]
[null,null,null,null,null,null,null,0,null,null,null,null,0]
[null,null,null,null,null,null,null,0,null,null,null,null,0]
[null,null,null,null,null,null,null,0,null,null,null,null,0]
[null,null,null,null,null,null,null,0,null,null,null,null,0]
[null,null,null,null,null,null,null,0,null,null,null,null,0]
[null,null,null,null,null,null,null,0,null,null,null,null,0]
[null,null,null,null,null,null,null,0,null,null,null,null,0]
[null,null,null,null,null,null,null,0,null,null,null,null,0]
[null,null,null,null,null,null,null,0,null,null,null,null,0]
[null,null,null,null,null,null,null,0,null,null,null,null,0]
[null,null,null,null,null,null,null,0,null,null,null,null,0]
[null,null,null,null,null,null,null,0,null,null,null,null,0]
[null,null,null,null,null,null,null,0,null,null,null,null,0]
[null,null,null,null,null,null,null,0,null,null,null,null,0]
[null,null,null,null,null,null,null,0,null,null,null,null,0]
[null,null,null,null,null,null,null,0,null,null,null,null,0]
[null,null,null,null,null,null,null,0,null,null,null,null,0]
[null,null,null,null,null,null,null,0,null,null,null,null,0]
[null,null,null,null,null,null,null,0,null,null,null,null,0]
[null,null,null,null,null,null,null,0,null,null,null,null,0]
[null,null,null,null,null,null,null,0,null,null,null,null,0]
[null,null,null,null,null,null,null,0,null,null,null,null,0]
[null,null,null,null,null,null,null,0,null,null,null,null,0]
[null,null,null,null,null,null,null,0,null,null,null,null,0]
[null,null,null,null,null,null,null,0,null,null,null,null,0]
[null,null,null,null,null,null,null,{"$f":"G748-F748","v":0},null,null,null,null,{"$f":"SUM(J748:L748)","v":0}]
[null,null,null,null,null,null,null,0,null,null,null,null,0]
[null,null,null,null,null,null,null,0,null,null,null,null,0]
[null,null,null,null,null,null,null,0,null,null,null,null,0]
[null,null,null,null,null,null,null,0,null,null,null,null,0]
[null,null,null,null,null,null,null,0,null,null,null,null,0]
[null,null,null,null,null,null,null,0,null,null,null,null,0]
[null,null,null,null,null,null,null,0,null,null,null,null,0]
[null,null,null,null,null,null,null,0,null,null,null,null,0]
[null,null,null,null,null,null,null,0,null,null,null,null,0]
[null,null,null,null,null,null,null,0,null,null,null,null,0]
[null,null,null,null,null,null,null,0,null,null,null,null,0]
[null,null,null,null,null,null,null,0,null,null,null,null,0]
[null,null,null,null,null,null,null,0,null,null,null,null,0]
[null,null,null,null,null,null,null,0,null,null,null,null,0]
[null,null,null,null,null,null,null,0,null,null,null,null,0]
[null,null,null,null,null,null,null,0,null,null,null,null,0]
[null,null,null,null,null,null,null,0,null,null,null,null,0]
[null,null,null,null,null,null,null,0,null,null,null,null,0]
[null,null,null,null,null,null,null,0,null,null,null,null,0]
[null,null,null,null,null,null,null,0,null,null,null,null,0]
[null,null,null,null,null,null,null,0,null,null,null,null,0]
[null,null,null,null,null,null,null,0,null,null,null,null,0]
[null,null,null,null,null,null,null,0,null,null,null,null,0]
[null,null,null,null,null,null,null,0,null,null,null,null,0]
[null,null,null,null,null,null,null,0,null,null,null,null,0]
[null,null,null,null,null,null,null,0,null,null,null,null,0]
[null,null,null,null,null,null,null,0,null,null,null,null,0]
[null,null,null,null,null,null,null,0,null,null,null,null,0]
[null,null,null,null,null,null,null,0,null,null,null,null,0]
[null,null,null,null,null,null,null,0,null,null,null,null,0]
[null,null,null,null,null,null,null,0,null,null,null,null,0]
[null,null,null,null,null,null,null,0,null,null,null,null,0]
[null,null,null,null,null,null,null,0,null,null,null,null,0]
[null,null,null,null,null,null,null,0,null,null,null,null,0]
[null,null,null,null,null,null,null,0,null,null,null,null,0]
[null,null,null,null,null,null,null,0,null,null,null,null,0]
[null,null,null,null,null,null,null,0,null,null,null,null,0]
[null,null,null,null,null,null,null,0,null,null,null,null,0]
[null,null,null,null,null,null,null,0,null,null,null,null,0]
[null,null,null,null,null,null,null,0,null,null,null,null,0]
[null,null,null,null,null,null,null,0,null,null,null,null,0]
[null,null,null,null,null,null,null,0,null,null,null,null,0]
[null,null,null,null,null,null,null,0,null,null,null,null,0]
[null,null,null,null,null,null,null,0,null,null,null,null,0]
[null,null,null,null,null,null,null,0,null,null,null,null,0]
[null,null,null,null,null,null,null,0,null,null,null,null,0]
[null,null,null,null,null,null,null,0,null,null,null,null,0]
[null,null,null,null,null,null,null,0,null,null,null,null,0]
[null,null,null,null,null,null,null,0,null,null,null,null,0]
[null,null,null,null,null,null,null,0,null,null,null,null,0]
[null,null,null,null,null,null,null,0,null,null,null,null,0]
[null,null,null,null,null,null,null,0,null,null,null,null,0]
[null,null,null,null,null,null,null,0,null,null,null,null,0]
[null,null,null,null,null,null,null,0,null,null,null,null,0]
[null,null,null,null,null,null,null,0,null,null,null,null,0]
[null,null,null,null,null,null,null,0,null,null,null,null,0]
[null,null,null,null,null,null,null,0,null,null,null,null,0]
[null,null,null,null,null,null,null,0,null,null,null,null,0]
[null,null,null,null,null,null,null,0,null,null,null,null,0]
[null,null,null,null,null,null,null,0,null,null,null,null,0]
[null,null,null,null,null,null,null,0,null,null,null,null,0]
[null,null,null,null,null,null,null,0,null,null,null,null,0]
[null,null,null,null,null,null,null,0,null,null,null,null,0]
[null,null,null,null,null,null,null,{"$f":"G812-F812","v":0},null,null,null,null,{"$f":"SUM(J812:L812)","v":0}]
[null,null,null,null,null,null,null,0,null,null,null,null,0]
[null,null,null,null,null,null,null,0,null,null,null,null,0]
[null,null,null,null,null,null,null,0,null,null,null,null,0]
[null,null,null,null,null,null,null,0,null,null,null,null,0]
[null,null,null,null,null,null,null,0,null,null,null,null,0]
[null,null,null,null,null,null,null,0,null,null,null,null,0]
[null,null,null,null,null,null,null,0,null,null,null,null,0]
[null,null,null,null,null,null,null,0,null,null,null,null,0]
[null,null,null,null,null,null,null,0,null,null,null,null,0]
[null,null,null,null,null,null,null,0,null,null,null,null,0]
[null,null,null,null,null,null,null,0,null,null,null,null,0]
[null,null,null,null,null,null,null,0,null,null,null,null,0]
[null,null,null,null,null,null,null,0,null,null,null,null,0]
[null,null,null,null,null,null,null,0,null,null,null,null,0]
[null,null,null,null,null,null,null,0,null,null,null,null,0]
[null,null,null,null,null,null,null,0,null,null,null,null,0]
[null,null,null,null,null,null,null,0,null,null,null,null,0]
[null,null,null,null,null,null,null,0,null,null,null,null,0]
[null,null,null,null,null,null,null,0,null,null,null,null,0]
[null,null,null,null,null,null,null,0,null,null,null,null,0]
[null,null,null,null,null,null,null,0,null,null,null,null,0]
[null,null,null,null,null,null,null,0,null,null,null,null,0]
[null,null,null,null,null,null,null,0,null,null,null,null,0]
[null,null,null,null,null,null,null,0,null,null,null,null,0]
[null,null,null,null,null,null,null,0,null,null,null,null,0]
[null,null,null,null,null,null,null,0,null,null,null,null,0]
[null,null,null,null,null,null,null,0,null,null,null,null,0]
[null,null,null,null,null,null,null,0,null,null,null,null,0]
[null,null,null,null,null,null,null,0,null,null,null,null,0]
[null,null,null,null,null,null,null,0,null,null,null,null,0]
[null,null,null,null,null,null,null,0,null,null,null,null,0]
[null,null,null,null,null,null,null,0,null,null,null,null,0]
[null,null,null,null,null,null,null,0,null,null,null,null,0]
[null,null,null,null,null,null,null,0,null,null,null,null,0]
[null,null,null,null,null,null,null,0,null,null,null,null,0]
[null,null,null,null,null,null,null,0,null,null,null,null,0]
[null,null,null,null,null,null,null,0,null,null,null,null,0]
[null,null,null,null,null,null,null,0,null,null,null,null,0]
[null,null,null,null,null,null,null,0,null,null,null,null,0]
[null,null,null,null,null,null,null,0,null,null,null,null,0]
[null,null,null,null,null,null,null,0,null,null,null,null,0]
[null,null,null,null,null,null,null,0,null,null,null,null,0]
[null,null,null,null,null,null,null,0,null,null,null,null,0]
[null,null,null,null,null,null,null,0,null,null,null,null,0]
[null,null,null,null,null,null,null,0,null,null,null,null,0]
[null,null,null,null,null,null,null,0,null,null,null,null,0]
[null,null,null,null,null,null,null,0,null,null,null,null,0]
[null,null,null,null,null,null,null,0,null,null,null,null,0]
[null,null,null,null,null,null,null,0,null,null,null,null,0]
[null,null,null,null,null,null,null,0,null,null,null,null,0]
[null,null,null,null,null,null,null,0,null,null,null,null,0]
[null,null,null,null,null,null,null,0,null,null,null,null,0]
[null,null,null,null,null,null,null,0,null,null,null,null,0]
[null,null,null,null,null,null,null,0,null,null,null,null,0]
[null,null,null,null,null,null,null,0,null,null,null,null,0]
[null,null,null,null,null,null,null,0,null,null,null,null,0]
[null,null,null,null,null,null,null,0,null,null,null,null,0]
[null,null,null,null,null,null,null,0,null,null,null,null,0]
[null,null,null,null,null,null,null,0,null,null,null,null,0]
[null,null,null,null,null,null,null,0,null,null,null,null,0]
[null,null,null,null,null,null,null,0,null,null,null,null,0]
[null,null,null,null,null,null,null,0,null,null,null,null,0]
[null,null,null,null,null,null,null,0,null,null,null,null,0]
[null,null,null,null,null,null,null,{"$f":"G876-F876","v":0},null,null,null,null,{"$f":"SUM(J876:L876)","v":0}]
[null,null,null,null,null,null,null,0,null,null,null,null,0]
[null,null,null,null,null,null,null,0,null,null,null,null,0]
[null,null,null,null,null,null,null,0,null,null,null,null,0]
[null,null,null,null,null,null,null,0,null,null,null,null,0]
[null,null,null,null,null,null,null,0,null,null,null,null,0]
[null,null,null,null,null,null,null,0,null,null,null,null,0]
[null,null,null,null,null,null,null,0,null,null,null,null,0]
[null,null,null,null,null,null,null,0,null,null,null,null,0]
[null,null,null,null,null,null,null,0,null,null,null,null,0]
[null,null,null,null,null,null,null,0,null,null,null,null,0]
[null,null,null,null,null,null,null,0,null,null,null,null,0]
[null,null,null,null,null,null,null,0,null,null,null,null,0]
[null,null,null,null,null,null,null,0,null,null,null,null,0]
[null,null,null,null,null,null,null,0,null,null,null,null,0]
[null,null,null,null,null,null,null,0,null,null,null,null,0]
[null,null,null,null,null,null,null,0,null,null,null,null,0]
[null,null,null,null,null,null,null,0,null,null,null,null,0]
[null,null,null,null,null,null,null,0,null,null,null,null,0]
[null,null,null,null,null,null,null,0,null,null,null,null,0]
[null,null,null,null,null,null,null,0,null,null,null,null,0]
[null,null,null,null,null,null,null,0,null,null,null,null,0]
[null,null,null,null,null,null,null,0,null,null,null,null,0]
[null,null,null,null,null,null,null,0,null,null,null,null,0]
[null,null,null,null,null,null,null,0,null,null,null,null,0]
[null,null,null,null,null,null,null,0,null,null,null,null,0]
[null,null,null,null,null,null,null,0,null,null,null,null,0]
[null,null,null,null,null,null,null,0,null,null,null,null,0]
[null,null,null,null,null,null,null,0,null,null,null,null,0]
[null,null,null,null,null,null,null,0,null,null,null,null,0]
[null,null,null,null,null,null,null,0,null,null,null,null,0]
[null,null,null,null,null,null,null,0,null,null,null,null,0]
[null,null,null,null,null,null,null,0,null,null,null,null,0]
[null,null,null,null,null,null,null,0,null,null,null,null,0]
[null,null,null,null,null,null,null,0,null,null,null,null,0]
[null,null,null,null,null,null,null,0,null,null,null,null,0]
[null,null,null,null,null,null,null,0,null,null,null,null,0]
[null,null,null,null,null,null,null,0,null,null,null,null,0]
[null,null,null,null,null,null,null,0,null,null,null,null,0]
[null,null,null,null,null,null,null,0,null,null,null,null,0]
[null,null,null,null,null,null,null,0,null,null,null,null,0]
[null,null,null,null,null,null,null,0,null,null,null,null,0]
[null,null,null,null,null,null,null,0,null,null,null,null,0]
[null,null,null,null,null,null,null,0,null,null,null,null,0]
[null,null,null,null,null,null,null,0,null,null,null,null,0]
[null,null,null,null,null,null,null,0,null,null,null,null,0]
[null,null,null,null,null,null,null,0,null,null,null,null,0]
[null,null,null,null,null,null,null,0,null,null,null,null,0]
[null,null,null,null,null,null,null,0,null,null,null,null,0]
[null,null,null,null,null,null,null,0,null,null,null,null,0]
[null,null,null,null,null,null,null,0,null,null,null,null,0]
[null,null,null,null,null,null,null,0,null,null,null,null,0]
[null,null,null,null,null,null,null,0,null,null,null,null,0]
[null,null,null,null,null,null,null,0,null,null,null,null,0]
[null,null,null,null,null,null,null,0,null,null,null,null,0]
[null,null,null,null,null,null,null,0,null,null,null,null,0]
[null,null,null,null,null,null,null,0,null,null,null,null,0]
[null,null,null,null,null,null,null,0,null,null,null,null,0]
[null,null,null,null,null,null,null,0,null,null,null,null,0]
[null,null,null,null,null,null,null,0,null,null,null,null,0]
[null,null,null,null,null,null,null,0,null,null,null,null,0]
[null,null,null,null,null,null,null,0,null,null,null,null,0]
[null,null,null,null,null,null,null,0,null,null,null,null,0]
[null,null,null,null,null,null,null,0,null,null,null,null,0]
[null,null,null,null,null,null,null,{"$f":"G940-F940","v":0},null,null,null,null,{"$f":"SUM(J940:L940)","v":0}]
[null,null,null,null,null,null,null,0,null,null,null,null,0]
[null,null,null,null,null,null,null,0,null,null,null,null,0]
[null,null,null,null,null,null,null,0,null,null,null,null,0]
[null,null,null,null,null,null,null,0,null,null,null,null,0]
[null,null,null,null,null,null,null,0,null,null,null,null,0]
[null,null,null,null,null,null,null,0,null,null,null,null,0]
[null,null,null,null,null,null,null,0,null,null,null,null,0]
[null,null,null,null,null,null,null,0,null,null,null,null,0]
[null,null,null,null,null,null,null,0,null,null,null,null,0]
[null,null,null,null,null,null,null,0,null,null,null,null,0]
[null,null,null,null,null,null,null,0,null,null,null,null,0]
[null,null,null,null,null,null,null,0,null,null,null,null,0]
[null,null,null,null,null,null,null,0,null,null,null,null,0]
[null,null,null,null,null,null,null,0,null,null,null,null,0]
[null,null,null,null,null,null,null,0,null,null,null,null,0]
[null,null,null,null,null,null,null,0,null,null,null,null,0]
[null,null,null,null,null,null,null,0,null,null,null,null,0]
[null,null,null,null,null,null,null,0,null,null,null,null,0]
[null,null,null,null,null,null,null,0,null,null,null,null,0]
[null,null,null,null,null,null,null,0,null,null,null,null,0]
[null,null,null,null,null,null,null,0,null,null,null,null,0]
[null,null,null,null,null,null,null,0,null,null,null,null,0]
[null,null,null,null,null,null,null,0,null,null,null,null,0]
[null,null,null,null,null,null,null,0,null,null,null,null,0]
[null,null,null,null,null,null,null,0,null,null,null,null,0]
[null,null,null,null,null,null,null,0,null,null,null,null,0]
[null,null,null,null,null,null,null,0,null,null,null,null,0]
[null,null,null,null,null,null,null,0,null,null,null,null,0]
[null,null,null,null,null,null,null,0,null,null,null,null,0]
[null,null,null,null,null,null,null,0,null,null,null,null,0]
[null,null,null,null,null,null,null,0,null,null,null,null,0]
[null,null,null,null,null,null,null,0,null,null,null,null,0]
[null,null,null,null,null,null,null,0,null,null,null,null,0]
[null,null,null,null,null,null,null,0,null,null,null,null,0]
[null,null,null,null,null,null,null,0,null,null,null,null,0]
[null,null,null,null,null,null,null,0,null,null,null,null,0]
[null,null,null,null,null,null,null,0,null,null,null,null,0]
[null,null,null,null,null,null,null,0,null,null,null,null,0]
[null,null,null,null,null,null,null,0,null,null,null,null,0]
[null,null,null,null,null,null,null,0,null,null,null,null,0]
[null,null,null,null,null,null,null,0,null,null,null,null,0]
[null,null,null,null,null,null,null,0,null,null,null,null,0]
[null,null,null,null,null,null,null,0,null,null,null,null,0]
[null,null,null,null,null,null,null,0,null,null,null,null,0]
[null,null,null,null,null,null,null,0,null,null,null,null,0]
[null,null,null,null,null,null,null,0,null,null,null,null,0]
[null,null,null,null,null,null,null,0,null,null,null,null,0]
[null,null,null,null,null,null,null,0,null,null,null,null,0]
[null,null,null,null,null,null,null,0,null,null,null,null,0]
[null,null,null,null,null,null,null,0,null,null,null,null,0]
[null,null,null,null,null,null,null,0,null,null,null,null,0]
[null,null,null,null,null,null,null,0,null,null,null,null,0]
[null,null,null,null,null,null,null,0,null,null,null,null,0]
[null,null,null,null,null,null,null,0,null,null,null,null,0]
[null,null,null,null,null,null,null,0,null,null,null,null,0]
[null,null,null,null,null,null,null,0,null,null,null,null,0]
[null,null,null,null,null,null,null,0,null,null,null,null,0]
[null,null,null,null,null,null,null,0,null,null,null,null,0]
[null,null,null,null,null,null,null,0,null,null,null,null,0]
[null,null,null,null,null,null,null,0,null,null,null,null,0]

{"sheet":"Dash","index":5,"n_rows":11,"n_cols":4,"rows_kept":11,"cut":false,"hidden":false,"merged":[[10,1,10,2],[10,3,10,20]]}
[]
[]
[]
[]
[]
[]
[]
[]
[]
[]
[null,"Empresa:",null,{"$f":"Menu!G26","v":"Empresa ABCDE"}]

{"sheet":"Dash (2)","index":6,"n_rows":25,"n_cols":4,"rows_kept":25,"cut":false,"hidden":false,"merged":[[10,1,10,2],[10,3,10,20],[13,3,13,8]]}
[]
[]
[]
[]
[]
[]
[]
[]
[]
[]
[null,"Empresa:",null,{"$f":"Menu!G26","v":"Empresa ABCDE"}]
[]
[]
[null,"Selecione o Veículo:",null,"CAMINHÃO VW 180"]
[]
[null,"Preventiva",{"$f":"IFERROR(VLOOKUP(D14,Veic!$C$14:$S$43,8,0),\"\")","v":1}]
[null,"Corretiva",{"$f":"IFERROR(VLOOKUP(D14,Veic!$C$14:$S$43,9,0),\"\")","v":2}]
[]
[null,"DespesaManut",{"$f":"IFERROR(VLOOKUP(D14,Veic!$C$14:$S$43,11,0),\"\")","v":1950}]
[null,"Fretes Realiz",{"$f":"IFERROR(VLOOKUP(D14,Veic!$C$14:$S$43,13,0),\"\")","v":3}]
[null,"KM Rodado",{"$f":"IFERROR(VLOOKUP(D14,Veic!$C$14:$S$43,16,0),\"\")","v":5950}]
[]
[null,"Receita",{"$f":"IFERROR(VLOOKUP(D14,Veic!$C$14:$S$43,14,0),\"\")","v":31500}]
[null,"Despesa",{"$f":"IFERROR(VLOOKUP(D14,Veic!$C$14:$S$43,15,0),\"\")","v":2800}]
[null,"Saldo",{"$f":"C23-C24","v":28700}]

{"sheet":"Dash (3)","index":7,"n_rows":25,"n_cols":4,"rows_kept":25,"cut":false,"hidden":false,"merged":[[10,1,10,2],[10,3,10,20],[13,3,13,8]]}
[]
[]
[]
[]
[]
[]
[]
[]
[]
[]
[null,"Empresa:",null,{"$f":"Menu!G26","v":"Empresa ABCDE"}]
[]
[]
[null,"Selecione o Motorista:",null,"JOSÉ DA SILVA"]
[]
[]
[]
[null,"Status CNH",{"$f":"IFERROR(VLOOKUP(D14,Mot!$C$14:$U$43,6,0),\"\")","v":"CNH VENCIDA"}]
[]
[null,"Fretes Realiz",{"$f":"IFERROR(VLOOKUP(D14,Mot!$C$14:$U$43,15,0),\"\")","v":3}]
[null,"KM Rodado",{"$f":"IFERROR(VLOOKUP(D14,Mot!$C$14:$U$43,16,0),\"\")","v":5950}]
[]
[null,"Receita",{"$f":"IFERROR(VLOOKUP(D14,Mot!$C$14:$U$43,17,0),\"\")","v":31500}]
[null,"Despesa",{"$f":"IFERROR(VLOOKUP(D14,Mot!$C$14:$U$43,18,0),\"\")","v":2800}]
[null,"Saldo",{"$f":"C23-C24","v":28700}]

{"sheet":"Instruções","index":8,"n_rows":0,"n_cols":0,"rows_kept":0,"cut":false,"hidden":false,"merged":[]}